Workbook

Sheet Table 17a
D1: Student To Teacher Ratios
A2: Table 17a of the Superintendent's Annual Report for Virginia
A3: Ratio of Pupil to Classroom Teacher Positions - Regular Day School 1
A4: Fiscal Year 2024
A5: Code | B5: School Division | C5: Elementary Teaching Positions 2 | D5: End-of-Year Average Daily Membership K-7 3 | E5: Pupil/Teacher Ratio K-7 | F5: Secondary Teaching Positions 4 | G5: End-of-Year Average Daily Membership 8-12 5 | H5: Pupil/Teacher Ratio 8-12
A6: no data | B6: COUNTIES | C6: no data | D6: no data | E6: no data | F6: no data | G6: no data | H6: no data
A7: 1 | B7: Accomack | C7: 228.35 | D7: 2707.68333 | E7: 11.86 | F7: 125.53 | G7: 1846.29445 | H7: 14.71
A8: 2 | B8: Albemarle | C8: 798.87 | D8: 8128.28812 | E8: 10.17 | F8: 465.84 | G8: 5166.32861 | H8: 11.09
A9: 3 | B9: Alleghany Highlands | C9: 151.04 | D9: 1634.93252 | E9: 10.82 | F9: 85.44 | G9: 1005.39886 | H9: 11.77
A10: 4 | B10: Amelia | C10: 70.92 | D10: 891.55811 | E10: 12.57 | F10: 47.53 | G10: 541.52036 | H10: 11.39
A11: 5 | B11: Amherst | C11: 210.71 | D11: 2232.33698 | E11: 10.59 | F11: 126.44 | G11: 1500.99998 | H11: 11.87
A12: 6 | B12: Appomattox | C12: 114.37 | D12: 1390.15174 | E12: 12.15 | F12: 69.21 | G12: 860.88201 | H12: 12.44
A13: 7 | B13: Arlington | C13: 1673.35 | D13: 16587.27739 | E13: 9.91 | F13: 764.56 | G13: 10204.17392 | H13: 13.35
A14: 8 | B14: Augusta | C14: 457.62 | D14: 5893.74859 | E14: 12.88 | F14: 297.85 | G14: 3161.78233 | H14: 10.62
A15: 9 | B15: Bath | C15: 32.3 | D15: 293.72412 | E15: 9.09 | F15: 23.2 | G15: 179.20116 | H15: 7.72
A16: 10 | B16: Bedford County | C16: 408.62 | D16: 5159.59715 | E16: 12.63 | F16: 302.3 | G16: 3478.95948 | H16: 11.51
A17: 11 | B17: Bland | C17: 34 | D17: 530.25267 | E17: 15.6 | F17: 27 | G17: 257.57865 | H17: 9.54
A18: 12 | B18: Botetourt | C18: 213.4 | D18: 2560.0977 | E18: 12 | F18: 142.35 | G18: 1720.03447 | H18: 12.08
A19: 13 | B19: Brunswick | C19: 86 | D19: 827.12921 | E19: 9.62 | F19: 51 | G19: 506.01116 | H19: 9.92
A20: 14 | B20: Buchanan | C20: 111.98 | D20: 1302.16539 | E20: 11.63 | F20: 88.17 | G20: 940.70556 | H20: 10.67
A21: 15 | B21: Buckingham | C21: 90.43 | D21: 1000.78358 | E21: 11.07 | F21: 105.34 | G21: 784.54967 | H21: 7.45
A22: 16 | B22: Campbell | C22: 338.65 | D22: 4450.67418 | E22: 13.14 | F22: 262.65 | G22: 3011.08291 | H22: 11.46
A23: 17 | B23: Caroline | C23: 186.02 | D23: 2678.39643 | E23: 14.4 | F23: 111.33 | G23: 1517.18967 | H23: 13.63
A24: 18 | B24: Carroll | C24: 130.6 | D24: 1986.87217 | E24: 15.21 | F24: 143.2 | G24: 1246.45556 | H24: 8.7
A25: 19 | B25: Charles City | C25: 25.4 | D25: 313.6836 | E25: 12.35 | F25: 28.53 | G25: 170.57625 | H25: 5.98
A26: 20 | B26: Charlotte | C26: 72.33 | D26: 1010.26707 | E26: 13.97 | F26: 52.65 | G26: 562.52274 | H26: 10.68
A27: 21 | B27: Chesterfield | C27: 3046.42 | D27: 37388.54208 | E27: 12.27 | F27: 1946.58 | G27: 24849.08083 | H27: 12.77
A28: 22 | B28: Clarke | C28: 87.16 | D28: 1041.49296 | E28: 11.95 | F28: 71.28 | G28: 828.68101 | H28: 11.63
A29: 23 | B29: Craig | C29: 28.24 | D29: 257.23976 | E29: 9.11 | F29: 20.33 | G29: 193.42688 | H29: 9.51
A30: 24 | B30: Culpeper | C30: 408.5 | D30: 4842.22706 | E30: 11.85 | F30: 236.31 | G30: 3303.04537 | H30: 13.98
A31: 25 | B31: Cumberland | C31: 74 | D31: 711.47159 | E31: 9.61 | F31: 40 | G31: 424.77277 | H31: 10.62
A32: 26 | B32: Dickenson | C32: 97.22 | D32: 1083.34083 | E32: 11.14 | F32: 72.98 | G32: 697.08944 | H32: 9.55
A33: 27 | B33: Dinwiddie | C33: 176.65 | D33: 2496.85174 | E33: 14.13 | F33: 101.35 | G33: 1449.51617 | H33: 14.3
A34: 28 | B34: Essex | C34: 65.75 | D34: 591.11425 | E34: 8.99 | F34: 37.32 | G34: 411.51996 | H34: 11.03
A35: 29 | B35: Fairfax County/City 6 | C35: 9170.59 | D35: 103077.0604 | E35: 11.24 | F35: 5988.07 | G35: 73138.65537 | H35: 12.21
A36: 30 | B36: Fauquier | C36: 513.9 | D36: 6163.5509 | E36: 11.99 | F36: 376.26 | G36: 4263.6304 | H36: 11.33
A37: 31 | B37: Floyd | C37: 90.76 | D37: 962.49441 | E37: 10.6 | F37: 57 | G37: 678.69661 | H37: 11.91
A38: 32 | B38: Fluvanna | C38: 155.19 | D38: 1886.84408 | E38: 12.16 | F38: 108.43 | G38: 1267.7168 | H38: 11.69
A39: 33 | B39: Franklin | C39: 381.06 | D39: 3511.63252 | E39: 9.22 | F39: 226.6 | G39: 2284.9095 | H39: 10.08
A40: 34 | B40: Frederick | C40: 601.93 | D40: 8339.11684 | E40: 13.85 | F40: 461.76 | G40: 5674.62993 | H40: 12.29
A41: 35 | B41: Giles | C41: 110 | D41: 2379.79442 | E41: 21.63 | F41: 80.15 | G41: 1078.83324 | H41: 13.46
A42: 36 | B42: Gloucester | C42: 244.26 | D42: 2926.54993 | E42: 11.98 | F42: 139.52 | G42: 1794.31659 | H42: 12.86
A43: 37 | B43: Goochland | C43: 135.94 | D43: 1443.56819 | E43: 10.62 | F43: 80.02 | G43: 1012.81817 | H43: 12.66
A44: 38 | B44: Grayson | C44: 93.13 | D44: 931.67042 | E44: 10 | F44: 58.38 | G44: 578.17609 | H44: 9.9
A45: 39 | B45: Greene | C45: 151.34 | D45: 1569.36462 | E45: 10.37 | F45: 90.47 | G45: 1171.35886 | H45: 12.95
A46: 40 | B46: Greensville/Emporia 6 | C46: 99.25 | D46: 1200.32187 | E46: 12.09 | F46: 115.07 | G46: 712.02254 | H46: 6.19
A47: 41 | B47: Halifax | C47: 215 | D47: 2519.62639 | E47: 11.72 | F47: 157.5 | G47: 1604.78411 | H47: 10.19
A48: 42 | B48: Hanover | C48: 913.84 | D48: 9770.618 | E48: 10.69 | F48: 564.1 | G48: 6651.5862 | H48: 11.79
A49: 43 | B49: Henrico | C49: 2201.31 | D49: 29258.01257 | E49: 13.29 | F49: 1392.71 | G49: 19651.97857 | H49: 14.11
A50: 44 | B50: Henry | C50: 257.1 | D50: 3895.93108 | E50: 15.15 | F50: 203.86 | G50: 2655.49421 | H50: 13.03
A51: 45 | B51: Highland | C51: 15 | D51: 123.75141 | E51: 8.25 | F51: 17.5 | G51: 70.14126 | H51: 4.01
A52: 46 | B52: Isle Of Wight | C52: 250.55 | D52: 3211.16045 | E52: 12.82 | F52: 152.2 | G52: 2190.48235 | H52: 14.39
A53: 48 | B53: King George | C53: 151.4 | D53: 2617.79815 | E53: 17.29 | F53: 180.75 | G53: 1651.20522 | H53: 9.14
A54: 49 | B54: King & Queen | C54: 31.16 | D54: 563.66805 | E54: 18.09 | F54: 25.69 | G54: 199.56143 | H54: 7.77
A55: 50 | B55: King William | C55: 93.5 | D55: 1202.56727 | E55: 12.86 | F55: 60.5 | G55: 768.91226 | H55: 12.71
A56: 51 | B56: Lancaster | C56: 40.5 | D56: 531.33716 | E56: 13.12 | F56: 28.25 | G56: 359.76433 | H56: 12.74
A57: 52 | B57: Lee | C57: 172 | D57: 1701.13323 | E57: 9.89 | F57: 94 | G57: 1047.81277 | H57: 11.15
A58: 53 | B58: Loudoun | C58: 3516.85 | D58: 47076.01503 | E58: 13.39 | F58: 3036.09 | G58: 34152.53254 | H58: 11.25
A59: 54 | B59: Louisa | C59: 262.4 | D59: 3047.78743 | E59: 11.62 | F59: 170.3 | G59: 1836.46921 | H59: 10.78
A60: 55 | B60: Lunenburg | C60: 75.45 | D60: 915.4293 | E60: 12.13 | F60: 47.79 | G60: 565.87002 | H60: 11.84
A61: 56 | B61: Madison | C61: 92 | D61: 937.7325 | E61: 10.19 | F61: 42.1 | G61: 619.87788 | H61: 14.72
A62: 57 | B62: Mathews | C62: 46.95 | D62: 446.75428 | E62: 9.52 | F62: 35.5 | G62: 328.50859 | H62: 9.25
A63: 58 | B63: Mecklenburg | C63: 222 | D63: 2252.50289 | E63: 10.15 | F63: 141 | G63: 1398.39688 | H63: 9.92
A64: 59 | B64: Middlesex | C64: 56.02 | D64: 703.14123 | E64: 12.55 | F64: 44.36 | G64: 390.7514 | H64: 8.81
A65: 60 | B65: Montgomery | C65: 565.92 | D65: 5583.69942 | E65: 9.87 | F65: 247.68 | G65: 3727.72021 | H65: 15.05
A66: 62 | B66: Nelson | C66: 78.71 | D66: 833.86694 | E66: 10.59 | F66: 64.52 | G66: 586.70755 | H66: 9.09
A67: 63 | B67: New Kent | C67: 163.02 | D67: 2101.15434 | E67: 12.89 | F67: 90.23 | G67: 1216.89714 | H67: 13.49
A68: 65 | B68: Northampton | C68: 69.76 | D68: 749.63832 | E68: 10.75 | F68: 48.83 | G68: 516.01694 | H68: 10.57
A69: 66 | B69: Northumberland | C69: 46.09 | D69: 649.22362 | E69: 14.09 | F69: 51.11 | G69: 391.23824 | H69: 7.65
A70: 67 | B70: Nottoway | C70: 78.75 | D70: 1065.81974 | E70: 13.53 | F70: 47.5 | G70: 576.32564 | H70: 12.13
A71: 68 | B71: Orange | C71: 241.6 | D71: 3035.80697 | E71: 12.57 | F71: 113.3 | G71: 1792.19954 | H71: 15.82
A72: 69 | B72: Page | C72: 168.44 | D72: 1672.63533 | E72: 9.93 | F72: 108.22 | G72: 1190.08234 | H72: 11
A73: 70 | B73: Patrick | C73: 116.42 | D73: 1449.90906 | E73: 12.45 | F73: 68.44 | G73: 809.35945 | H73: 11.83
A74: 71 | B74: Pittsylvania | C74: 385.55 | D74: 4310.54187 | E74: 11.18 | F74: 247.62 | G74: 3022.9078 | H74: 12.21
A75: 72 | B75: Powhatan | C75: 192.42 | D75: 2380.72407 | E75: 12.37 | F75: 123.39 | G75: 1632.68524 | H75: 13.23
A76: 73 | B76: Prince Edward | C76: 105.5 | D76: 1101.48344 | E76: 10.44 | F76: 58 | G76: 624.16453 | H76: 10.76
A77: 74 | B77: Prince George | C77: 263 | D77: 3716.39323 | E77: 14.13 | F77: 157 | G77: 2050.16186 | H77: 13.06
A78: 75 | B78: Prince William | C78: 4017.83 | D78: 52693.94219 | E78: 13.12 | F78: 2281.69 | G78: 35731.18233 | H78: 15.66
A79: 77 | B79: Pulaski | C79: 209 | D79: 2699.51301 | E79: 12.92 | F79: 120 | G79: 1470.76465 | H79: 12.26
A80: 78 | B80: Rappahannock | C80: 39.9 | D80: 423.99411 | E80: 10.63 | F80: 35.5 | G80: 302.01765 | H80: 8.51
A81: 79 | B81: Richmond | C81: 60.75 | D81: 782.57865 | E81: 12.88 | F81: 35.71 | G81: 431.37078 | H81: 12.08
A82: 80 | B82: Roanoke | C82: 703.78 | D82: 7759.90617 | E82: 11.03 | F82: 445.6 | G82: 5574.43194 | H82: 12.51
A83: 81 | B83: Rockbridge | C83: 147.2 | D83: 1286.1046 | E83: 8.74 | F83: 87.9 | G83: 1081.47674 | H83: 12.3
A84: 82 | B84: Rockingham | C84: 551.03 | D84: 6671.68322 | E84: 12.11 | F84: 392.86 | G84: 3650.12219 | H84: 9.29
A85: 83 | B85: Russell | C85: 180.97 | D85: 1831.21224 | E85: 10.12 | F85: 123.64 | G85: 1312.22896 | H85: 10.61
A86: 84 | B86: Scott | C86: 243 | D86: 2178.45778 | E86: 8.96 | F86: 124 | G86: 1800.41865 | H86: 14.52
A87: 85 | B87: Shenandoah | C87: 292.27 | D87: 3214.0287 | E87: 11 | F87: 149.89 | G87: 2198.79874 | H87: 14.67
A88: 86 | B88: Smyth | C88: 217.59 | D88: 2236.68708 | E88: 10.28 | F88: 151.72 | G88: 1477.25694 | H88: 9.74
A89: 87 | B89: Southampton | C89: 100 | D89: 1427.66485 | E89: 14.28 | F89: 46.59 | G89: 887.30221 | H89: 19.04
A90: 88 | B90: Spotsylvania | C90: 932.96 | D90: 13878.59912 | E90: 14.88 | F90: 662.95 | G90: 9306.06521 | H90: 14.04
A91: 89 | B91: Stafford | C91: 1289.1 | D91: 18025.23451 | E91: 13.98 | F91: 811.23 | G91: 12719.41816 | H91: 15.68
A92: 90 | B92: Surry | C92: 28.4 | D92: 394.56819 | E92: 13.89 | F92: 54.8 | G92: 255.94316 | H92: 4.67
A93: 91 | B93: Sussex | C93: 59 | D93: 569.01146 | E93: 9.64 | F93: 42.96 | G93: 376.50002 | H93: 8.76
A94: 92 | B94: Tazewell | C94: 233.47 | D94: 3105.87219 | E94: 13.3 | F94: 173.71 | G94: 2000.40558 | H94: 11.52
A95: 93 | B95: Warren | C95: 233.96 | D95: 2923.14545 | E95: 12.49 | F95: 184.51 | G95: 1980.02024 | H95: 10.73
A96: 94 | B96: Washington | C96: 310.5 | D96: 3820.39876 | E96: 12.3 | F96: 242 | G96: 2588.54306 | H96: 10.7
A97: 95 | B97: Westmoreland | C97: 77.05 | D97: 886.13939 | E97: 11.5 | F97: 61.55 | G97: 496.89723 | H97: 8.07
A98: 96 | B98: Wise | C98: 350.69 | D98: 3390.04607 | E98: 9.67 | F98: 167.06 | G98: 2015.29308 | H98: 12.06
A99: 97 | B99: Wythe | C99: 203.57 | D99: 2214.88564 | E99: 10.88 | F99: 121.35 | G99: 1363.38476 | H99: 11.24
A100: 98 | B100: York | C100: 562.32 | D100: 7866.12915 | E100: 13.99 | F100: 376.48 | G100: 4575.03931 | H100: 12.15
A101: no data | B101: CITIES
A102: 101 | B102: Alexandria | C102: 724.56 | D102: 10194.04993 | E102: 14.07 | F102: 581 | G102: 5659.17895 | H102: 9.74
A103: 102 | B103: Bristol | C103: 140 | D103: 1264.49689 | E103: 9.03 | F103: 82 | G103: 778.65129 | H103: 9.5
A104: 103 | B104: Buena Vista | C104: 35 | D104: 479.53804 | E104: 13.7 | F104: 23 | G104: 305.76025 | H104: 13.29
A105: 104 | B105: Charlottesville | C105: 241 | D105: 2496.31604 | E105: 10.36 | F105: 161.1 | G105: 1549.30676 | H105: 9.62
A106: 106 | B106: Colonial Heights | C106: 100.33 | D106: 1743.04649 | E106: 17.37 | F106: 121.86 | G106: 1040.48564 | H106: 8.54
A107: 107 | B107: Covington | C107: 0 | D107: 0 | E107: =of:={#DIV/0!} ->  | F107: 0 | G107: 0 | H107: =of:={#DIV/0!} -> 
A108: 108 | B108: Danville | C108: 280.03 | D108: 3313.24552 | E108: 11.83 | F108: 176.98 | G108: 1944.71871 | H108: 10.99
A109: 109 | B109: Falls Church | C109: 125.31 | D109: 1461.83614 | E109: 11.67 | F109: 85.29 | G109: 1080.05649 | H109: 12.66
A110: 110 | B110: Fredericksburg | C110: 189.5 | D110: 2162.19014 | E110: 11.41 | F110: 88.5 | G110: 1201.75067 | H110: 13.58
A111: 111 | B111: Galax | C111: 69.13 | D111: 828.23031 | E111: 11.98 | F111: 44.08 | G111: 508.41874 | H111: 11.53
A112: 112 | B112: Hampton | C112: 868.63 | D112: 11488.84904 | E112: 13.23 | F112: 648.75 | G112: 7324.32391 | H112: 11.29
A113: 113 | B113: Harrisonburg | C113: 383.5 | D113: 4047.7299 | E113: 10.55 | F113: 185.5 | G113: 2233.55147 | H113: 12.04
A114: 114 | B114: Hopewell | C114: 197.06 | D114: 2205.07338 | E114: 11.19 | F114: 101.5 | G114: 1343.66673 | H114: 13.24
A115: 115 | B115: Lynchburg | C115: 419.5 | D115: 4438.04417 | E115: 10.58 | F115: 227.5 | G115: 2691.85329 | H115: 11.83
A116: 116 | B116: Martinsville | C116: 90.18 | D116: 1008.91443 | E116: 11.19 | F116: 61.42 | G116: 656.88573 | H116: 10.69
A117: 117 | B117: Newport News | C117: 1010.98 | D117: 15466.67778 | E117: 15.3 | F117: 668.42 | G117: 9243.18146 | H117: 13.83
A118: 118 | B118: Norfolk | C118: 979 | D118: 15938.75032 | E118: 16.28 | F118: 792 | G118: 8906.77792 | H118: 11.25
A119: 119 | B119: Norton | C119: 43.2 | D119: 463.90282 | E119: 10.74 | F119: 23.25 | G119: 316.0171 | H119: 13.59
A120: 120 | B120: Petersburg | C120: 154.55 | D120: 2631.52277 | E120: 17.03 | F120: 149.12 | G120: 1385.875 | H120: 9.29
A121: 121 | B121: Portsmouth | C121: 482.4 | D121: 7791.58741 | E121: 16.15 | F121: 319.34 | G121: 4275.68824 | H121: 13.39
A122: 122 | B122: Radford | C122: 76.26 | D122: 1069.78581 | E122: 14.03 | F122: 58.71 | G122: 2037.07479 | H122: 34.7
A123: 123 | B123: Richmond City | C123: 1091.2 | D123: 13135.28944 | E123: 12.04 | F123: 1061.8 | G123: 6366.54228 | H123: 6
A124: 124 | B124: Roanoke City | C124: 766.51 | D124: 8146.99231 | E124: 10.63 | F124: 347.03 | G124: 4699.39778 | H124: 13.54
A125: 126 | B125: Staunton | C125: 140.11 | D125: 1537.89421 | E125: 10.98 | F125: 76.59 | G125: 948.94117 | H125: 12.39
A126: 127 | B126: Suffolk | C126: 609.11 | D126: 8407.53572 | E126: 13.8 | F126: 392.89 | G126: 5321.65724 | H126: 13.54
A127: 128 | B127: Virginia Beach | C127: 2939.42 | D127: 37854.66992 | E127: 12.88 | F127: 1789.36 | G127: 24413.19647 | H127: 13.64
A128: 130 | B128: Waynesboro | C128: 164.72 | D128: 1704.98827 | E128: 10.35 | F128: 82.86 | G128: 979.20466 | H128: 11.82
A129: 131 | B129: Williamsburg/James City County 6 | C129: 556.54 | D129: 6641.06121 | E129: 11.93 | F129: 304.48 | G129: 4433.07242 | H129: 14.56
A130: 132 | B130: Winchester | C130: 214.26 | D130: 2366.05235 | E130: 11.04 | F130: 155.73 | G130: 1606.8183 | H130: 10.32
A131: 135 | B131: Franklin | C131: 67.42 | D131: 592.60027 | E131: 8.79 | F131: 31.22 | G131: 372.46017 | H131: 11.93
A132: 136 | B132: Chesapeake | C132: 1701.53 | D132: 23400.19552 | E132: 13.75 | F132: 1223.41 | G132: 16057.95471 | H132: 13.13
A133: 137 | B133: Lexington | C133: 41.07 | D133: 456.59884 | E133: 11.12 | F133: 3.83 | G133: 47.67442 | H133: 12.45
A134: 139 | B134: Salem | C134: 172.25 | D134: 2548.1524 | E134: 14.79 | F134: 118.74 | G134: 1592.50921 | H134: 13.41
A135: 142 | B135: Poquoson | C135: 86.43 | D135: 1201.21671 | E135: 13.9 | F135: 64.18 | G135: 742.49444 | H135: 11.57
A136: 143 | B136: Manassas | C136: 329.41 | D136: 4478.6974 | E136: 13.6 | F136: 184.28 | G136: 2839.58746 | H136: 15.41
A137: 144 | B137: Manassas Park | C137: 159.42 | D137: 1916.84182 | E137: 12.02 | F137: 91.15 | G137: 1352.86994 | H137: 14.84
A138: no data | B138: TOWNS
A139: 202 | B139: Colonial Beach | C139: 29 | D139: 349.33722 | E139: 12.05 | F139: 21 | G139: 184.26164 | H139: 8.77
A140: 207 | B140: West Point | C140: 40 | D140: 495.2816 | E140: 12.38 | F140: 37 | G140: 299.90804 | H140: 8.11
A141: no data | B141: SCHOOL DIVISION SUBTOTAL | C141: =of:=SUM([.C7:.C140]) -> 59017.32 | D141: =of:=SUM([.D7:.D140]) -> 729816.7268 | E141: =of:=[.D141]/[.C141] -> 12.36614483 | F141: =of:=SUM([.F7:.F140]) -> 38926.61 | G141: =of:=SUM([.G7:.G140]) -> 479092.3951 | H141: =of:=[.G141]/[.F141] -> 12.30758073
A142: 1 Table 2 was combined with Table 17 since both tables report pupil-teacher ratio information. The information previously reported in Table 2 is now contained in Table 17a with the following updates. Elementary and Secondary Teaching Positions previously included Guidance Counselors and Librarians; these positions are no longer captured in the pupil-teacher ratios in this table. Technology instructional teachers were added to the pupil-teacher ratios in this table. End-of-year Average Daily Membership now reflects serving membership to align with Table 17b.
A143: 2 Elementary Teaching positions includes classroom, homebound, media, and technology instructional teachers for grades K through 7.
A144: 3 The Average Daily Membership (ADM) shown reflects all pupils (K through 7) served in the school division at the end of the year.
A145: 4 Secondary Teaching positions includes classroom, homebound, media, and technology instructional teachers for grades 8 through 12.
A146: 5 The Average Daily Membership (ADM) shown reflects all pupils (8 through 12) served in the school division at the end of the year.
A147: 6 Data for jointly-operated school divisions (Fairfax City and Fairfax County; Emporia and Greensville County; and Williamsburg and James City County) is reported under the fiscal agent division only. Fairfax County, Greensville County and Williamsburg are the fiscal agent divisions.
A148: end of worksheet

Sheet Table 17b
A1: This sheet contains a table with 211 school divisions/programs, with subtotals for school divsions, totals for divisions/programs, and explanations for footnotes where appropriate.
A2: Table 17b of the Superintendent's Annual Report for Virginia | V2: 2015 | W2: Beg Sch Yr
A3: Total Instructional Positions and Instructional Positions Per 1,000 Students in ADM 1
A4: Fiscal Year 2024
A5: Code | B5: School Division/Regional Program | C5: End-of-Year ADM for Determining Positions Per 1,000 Students 2 | D5: Principals and Assistant Principals | E5: Per 1,000 Students | F5: Teachers 3 | G5: Per 1,000 Students | H5: Teacher Substitutes | I5: Teacher Aides | J5: Per 1,000 Students | K5: Guidance Counselors and Librarians | L5: Per 1,000 Students | M5: Guidance Counselor Substitutes | N5: District-Wide Instructors | O5: Per 1,000 Students | P5: District-Wide Instructor Substitutes | Q5: Total Instructional Positions 4 | R5: Total Instructional Positions Per 1,000 Students 4
A6: no data | B6: COUNTIES | C6: no data | D6: no data | E6: no data | F6: no data | G6: no data | H6: no data | I6: no data | J6: no data | K6: no data | L6: no data | M6: no data | N6: no data | O6: no data | P6: no data | Q6: no data | R6: no data
A7: 1 | B7: Accomack | C7: 4714.88885 | D7: 25.63 | E7: 5.44 | F7: 353.88 | G7: 75.06 | H7: 30.44 | I7: 92.35 | J7: 19.59 | K7: 25.46 | L7: 5.4 | M7: 0 | N7: 5 | O7: 1.06 | P7: 0 | Q7: =of:=[.D7]+[.F7]+[.I7]+[.K7]+[.N7] -> 502.32 | R7: =of:=[.Q7]/[.C7]*1000 -> 106.5390969
A8: 2 | B8: Albemarle | C8: 13598.60509 | D8: 63.91 | E8: 4.7 | F8: 1264.71 | G8: 93 | H8: 92 | I8: 454.03 | J8: 33.39 | K8: 104.92 | L8: 7.72 | M8: 0 | N8: 43.68 | O8: 3.21 | P8: 3.13 | Q8: =of:=[.D8]+[.F8]+[.I8]+[.K8]+[.N8] -> 1931.25 | R8: =of:=[.Q8]/[.C8]*1000 -> 142.0182428
A9: 3 | B9: Alleghany Highlands | C9: 2783.88476 | D9: 14.05 | E9: 5.05 | F9: 236.48 | G9: 84.95 | H9: 20.91 | I9: 58.05 | J9: 20.85 | K9: 13.93 | L9: 5 | M9: 0.05 | N9: 0.55 | O9: 0.2 | P9: 0 | Q9: =of:=[.D9]+[.F9]+[.I9]+[.K9]+[.N9] -> 323.06 | R9: =of:=[.Q9]/[.C9]*1000 -> 116.0464703
A10: 4 | B10: Amelia | C10: 1502.11918 | D10: 7 | E10: 4.66 | F10: 118.45 | G10: 78.86 | H10: 4.21 | I10: 27.61 | J10: 18.38 | K10: 10.26 | L10: 6.83 | M10: 0 | N10: 4 | O10: 2.66 | P10: 0.15 | Q10: =of:=[.D10]+[.F10]+[.I10]+[.K10]+[.N10] -> 167.32 | R10: =of:=[.Q10]/[.C10]*1000 -> 111.3892974
A11: 5 | B11: Amherst | C11: 3879.15906 | D11: 18.03 | E11: 4.65 | F11: 337.15 | G11: 86.91 | H11: 45.75 | I11: 71.17 | J11: 18.35 | K11: 26.02 | L11: 6.71 | M11: 0 | N11: 29.89 | O11: 7.71 | P11: 0 | Q11: =of:=[.D11]+[.F11]+[.I11]+[.K11]+[.N11] -> 482.26 | R11: =of:=[.Q11]/[.C11]*1000 -> 124.3207594
A12: 6 | B12: Appomattox | C12: 2323.99445 | D12: 10 | E12: 4.3 | F12: 183.58 | G12: 78.99 | H12: 10 | I12: 65.25 | J12: 28.08 | K12: 11.33 | L12: 4.88 | M12: 0 | N12: 5.5 | O12: 2.37 | P12: 0 | Q12: =of:=[.D12]+[.F12]+[.I12]+[.K12]+[.N12] -> 275.66 | R12: =of:=[.Q12]/[.C12]*1000 -> 118.6147411
A13: 7 | B13: Arlington | C13: 27737.31163 | D13: 104.68 | E13: 3.77 | F13: 2437.91 | G13: 87.89 | H13: 38.2 | I13: 301.56 | J13: 10.87 | K13: 121.17 | L13: 4.37 | M13: 0 | N13: 94.58 | O13: 3.41 | P13: 0.12 | Q13: =of:=[.D13]+[.F13]+[.I13]+[.K13]+[.N13] -> 3059.9 | R13: =of:=[.Q13]/[.C13]*1000 -> 110.3171079
A14: 8 | B14: Augusta | C14: 9384.49637 | D14: 43 | E14: 4.58 | F14: 755.47 | G14: 80.5 | H14: 78.95 | I14: 187 | J14: 19.93 | K14: 53 | L14: 5.65 | M14: 0.2 | N14: 37 | O14: 3.94 | P14: 3.4 | Q14: =of:=[.D14]+[.F14]+[.I14]+[.K14]+[.N14] -> 1075.47 | R14: =of:=[.Q14]/[.C14]*1000 -> 114.6007156
A15: 9 | B15: Bath | C15: 508.71837 | D15: 3 | E15: 5.9 | F15: 55.5 | G15: 109.1 | H15: 4.26 | I15: 17 | J15: 33.42 | K15: 5 | L15: 9.83 | M15: 0 | N15: 2 | O15: 3.93 | P15: 0 | Q15: =of:=[.D15]+[.F15]+[.I15]+[.K15]+[.N15] -> 82.5 | R15: =of:=[.Q15]/[.C15]*1000 -> 162.1722447
A16: 10 | B16: Bedford County | C16: 8904.50911 | D16: 37 | E16: 4.16 | F16: 710.92 | G16: 79.84 | H16: 48.18 | I16: 191 | J16: 21.45 | K16: 50 | L16: 5.62 | M16: 0 | N16: 17.04 | O16: 1.91 | P16: 0 | Q16: =of:=[.D16]+[.F16]+[.I16]+[.K16]+[.N16] -> 1005.96 | R16: =of:=[.Q16]/[.C16]*1000 -> 112.9719772
A17: 11 | B17: Bland | C17: 799.71334 | D17: 3 | E17: 3.75 | F17: 61 | G17: 76.28 | H17: 3 | I17: 10 | J17: 12.5 | K17: 4 | L17: 5 | M17: 0 | N17: 1 | O17: 1.25 | P17: 0 | Q17: =of:=[.D17]+[.F17]+[.I17]+[.K17]+[.N17] -> 79 | R17: =of:=[.Q17]/[.C17]*1000 -> 98.78539728
A18: 12 | B18: Botetourt | C18: 4397.74137 | D18: 19 | E18: 4.32 | F18: 355.75 | G18: 80.89 | H18: 13 | I18: 96.6 | J18: 21.97 | K18: 30 | L18: 6.82 | M18: 1 | N18: 3 | O18: 0.68 | P18: 0.35 | Q18: =of:=[.D18]+[.F18]+[.I18]+[.K18]+[.N18] -> 504.35 | R18: =of:=[.Q18]/[.C18]*1000 -> 114.6838701
A19: 13 | B19: Brunswick | C19: 1375.71902 | D19: 6 | E19: 4.36 | F19: 137 | G19: 99.58 | H19: 12 | I19: 41 | J19: 29.8 | K19: 7 | L19: 5.09 | M19: 0 | N19: 4 | O19: 2.91 | P19: 0 | Q19: =of:=[.D19]+[.F19]+[.I19]+[.K19]+[.N19] -> 195 | R19: =of:=[.Q19]/[.C19]*1000 -> 141.7440605
A20: 14 | B20: Buchanan | C20: 2359.2209 | D20: 11 | E20: 4.66 | F20: 200.15 | G20: 84.84 | H20: 26.96 | I20: 63.4 | J20: 26.87 | K20: 15.1 | L20: 6.4 | M20: 0 | N20: 15.33 | O20: 6.5 | P20: 1.8 | Q20: =of:=[.D20]+[.F20]+[.I20]+[.K20]+[.N20] -> 304.98 | R20: =of:=[.Q20]/[.C20]*1000 -> 129.2714896
A21: 15 | B21: Buckingham | C21: 1892.97067 | D21: 11.5 | E21: 6.08 | F21: 195.77 | G21: 103.42 | H21: 14.96 | I21: 30 | J21: 15.85 | K21: 6 | L21: 3.17 | M21: 0.02 | N21: 6 | O21: 3.17 | P21: 0.48 | Q21: =of:=[.D21]+[.F21]+[.I21]+[.K21]+[.N21] -> 249.27 | R21: =of:=[.Q21]/[.C21]*1000 -> 131.6819135
A22: 16 | B22: Campbell | C22: 7776.57169 | D22: 34 | E22: 4.37 | F22: 601.3 | G22: 77.32 | H22: 68.25 | I22: 137.71 | J22: 17.71 | K22: 36.92 | L22: 4.75 | M22: 0 | N22: 15.6 | O22: 2.01 | P22: 1.52 | Q22: =of:=[.D22]+[.F22]+[.I22]+[.K22]+[.N22] -> 825.53 | R22: =of:=[.Q22]/[.C22]*1000 -> 106.1560329
A23: 17 | B23: Caroline | C23: 4454.34473 | D23: 17 | E23: 3.82 | F23: 297.35 | G23: 66.76 | H23: 12.18 | I23: 75 | J23: 16.84 | K23: 20 | L23: 4.49 | M23: 0.01 | N23: 16 | O23: 3.59 | P23: 1.62 | Q23: =of:=[.D23]+[.F23]+[.I23]+[.K23]+[.N23] -> 425.35 | R23: =of:=[.Q23]/[.C23]*1000 -> 95.49103758
A24: 18 | B24: Carroll | C24: 3392.8166 | D24: 14.75 | E24: 4.35 | F24: 273.8 | G24: 80.7 | H24: 22.9 | I24: 62 | J24: 18.27 | K24: 20 | L24: 5.89 | M24: 0 | N24: 9 | O24: 2.65 | P24: 1.1 | Q24: =of:=[.D24]+[.F24]+[.I24]+[.K24]+[.N24] -> 379.55 | R24: =of:=[.Q24]/[.C24]*1000 -> 111.8687052
A25: 19 | B25: Charles City | C25: 517.04514 | D25: 4 | E25: 7.74 | F25: 53.93 | G25: 104.3 | H25: 0 | I25: 10.2 | J25: 19.73 | K25: 4.1 | L25: 7.93 | M25: 0 | N25: 2 | O25: 3.87 | P25: 0 | Q25: =of:=[.D25]+[.F25]+[.I25]+[.K25]+[.N25] -> 74.23 | R25: =of:=[.Q25]/[.C25]*1000 -> 143.5658016
A26: 20 | B26: Charlotte | C26: 1653.03412 | D26: 7.7 | E26: 4.66 | F26: 124.98 | G26: 75.61 | H26: 11.35 | I26: 20.95 | J26: 12.67 | K26: 9 | L26: 5.44 | M26: 0 | N26: 3.1 | O26: 1.88 | P26: 0.58 | Q26: =of:=[.D26]+[.F26]+[.I26]+[.K26]+[.N26] -> 165.73 | R26: =of:=[.Q26]/[.C26]*1000 -> 100.2580636
A27: 21 | B27: Chesterfield | C27: 63234.23966 | D27: 218 | E27: 3.45 | F27: 4993 | G27: 78.96 | H27: 554.24 | I27: 647.52 | J27: 10.24 | K27: 341.92 | L27: 5.41 | M27: 0 | N27: 49 | O27: 0.77 | P27: 10.37 | Q27: =of:=[.D27]+[.F27]+[.I27]+[.K27]+[.N27] -> 6249.44 | R27: =of:=[.Q27]/[.C27]*1000 -> 98.83000149
A28: 22 | B28: Clarke | C28: 1908.5303 | D28: 9 | E28: 4.72 | F28: 158.44 | G28: 83.02 | H28: 12.94 | I28: 29.02 | J28: 15.21 | K28: 11.63 | L28: 6.09 | M28: 0 | N28: 2.54 | O28: 1.33 | P28: 0.02 | Q28: =of:=[.D28]+[.F28]+[.I28]+[.K28]+[.N28] -> 210.63 | R28: =of:=[.Q28]/[.C28]*1000 -> 110.3624082
A29: 23 | B29: Craig | C29: 464.23388 | D29: 3 | E29: 6.46 | F29: 48.57 | G29: 104.62 | H29: 4.6 | I29: 18.15 | J29: 39.1 | K29: 3.21 | L29: 6.91 | M29: 0 | N29: 0.01 | O29: 0.02 | P29: 0 | Q29: =of:=[.D29]+[.F29]+[.I29]+[.K29]+[.N29] -> 72.94 | R29: =of:=[.Q29]/[.C29]*1000 -> 157.1190797
A30: 24 | B30: Culpeper | C30: 8320.4202 | D30: 30 | E30: 3.61 | F30: 644.81 | G30: 77.5 | H30: 17.15 | I30: 181 | J30: 21.75 | K30: 36 | L30: 4.33 | M30: 0 | N30: 10.65 | O30: 1.28 | P30: 0.11 | Q30: =of:=[.D30]+[.F30]+[.I30]+[.K30]+[.N30] -> 902.46 | R30: =of:=[.Q30]/[.C30]*1000 -> 108.4632721
A31: 25 | B31: Cumberland | C31: 1216.81254 | D31: 6 | E31: 4.93 | F31: 114 | G31: 93.69 | H31: 54 | I31: 29 | J31: 23.83 | K31: 5 | L31: 4.11 | M31: 0 | N31: 29 | O31: 23.83 | P31: 0 | Q31: =of:=[.D31]+[.F31]+[.I31]+[.K31]+[.N31] -> 183 | R31: =of:=[.Q31]/[.C31]*1000 -> 150.3929274
A32: 26 | B32: Dickenson | C32: 1857.94982 | D32: 9 | E32: 4.84 | F32: 170.2 | G32: 91.61 | H32: 27.5 | I32: 21.22 | J32: 11.42 | K32: 10 | L32: 5.38 | M32: 0 | N32: 5 | O32: 2.69 | P32: 0.33 | Q32: =of:=[.D32]+[.F32]+[.I32]+[.K32]+[.N32] -> 215.42 | R32: =of:=[.Q32]/[.C32]*1000 -> 115.9450044
A33: 27 | B33: Dinwiddie | C33: 4067.63851 | D33: 16.9 | E33: 4.15 | F33: 278 | G33: 68.34 | H33: 36.88 | I33: 35.3 | J33: 8.68 | K33: 18 | L33: 4.43 | M33: 0 | N33: 14.67 | O33: 3.61 | P33: 0.27 | Q33: =of:=[.D33]+[.F33]+[.I33]+[.K33]+[.N33] -> 362.87 | R33: =of:=[.Q33]/[.C33]*1000 -> 89.20900889
A34: 28 | B34: Essex | C34: 1046.79993 | D34: 7.39 | E34: 7.06 | F34: 103.07 | G34: 98.46 | H34: 9.53 | I34: 16.03 | J34: 15.31 | K34: 6 | L34: 5.73 | M34: 0 | N34: 4.6 | O34: 4.39 | P34: 0.86 | Q34: =of:=[.D34]+[.F34]+[.I34]+[.K34]+[.N34] -> 137.09 | R34: =of:=[.Q34]/[.C34]*1000 -> 130.9610328
A35: 29 | B35: Fairfax County/City5 | C35: 181063.1178 | D35: 665.3 | E35: 3.67 | F35: 15158.66 | G35: 83.72 | H35: 1384.17 | I35: 3181.84 | J35: 17.57 | K35: 954.68 | L35: 5.27 | M35: 0 | N35: 381.05 | O35: 2.1 | P35: 9.5 | Q35: =of:=[.D35]+[.F35]+[.I35]+[.K35]+[.N35] -> 20341.53 | R35: =of:=[.Q35]/[.C35]*1000 -> 112.344967
A36: 30 | B36: Fauquier | C36: 10616.9767 | D36: 43 | E36: 4.05 | F36: 890.16 | G36: 83.84 | H36: 67.47 | I36: 261.58 | J36: 24.64 | K36: 53 | L36: 4.99 | M36: 0 | N36: 5 | O36: 0.47 | P36: 0 | Q36: =of:=[.D36]+[.F36]+[.I36]+[.K36]+[.N36] -> 1252.74 | R36: =of:=[.Q36]/[.C36]*1000 -> 117.9940425
A37: 31 | B37: Floyd | C37: 1702.85394 | D37: 8 | E37: 4.7 | F37: 147.76 | G37: 86.77 | H37: 0 | I37: 48.86 | J37: 28.69 | K37: 8.6 | L37: 5.05 | M37: 0 | N37: 5.5 | O37: 3.23 | P37: 0 | Q37: =of:=[.D37]+[.F37]+[.I37]+[.K37]+[.N37] -> 218.72 | R37: =of:=[.Q37]/[.C37]*1000 -> 128.4431946
A38: 32 | B38: Fluvanna | C38: 3215.03488 | D38: 13 | E38: 4.04 | F38: 263.62 | G38: 82 | H38: 6.9 | I38: 86.5 | J38: 26.9 | K38: 17.5 | L38: 5.44 | M38: 0 | N38: 4 | O38: 1.24 | P38: 0 | Q38: =of:=[.D38]+[.F38]+[.I38]+[.K38]+[.N38] -> 384.62 | R38: =of:=[.Q38]/[.C38]*1000 -> 119.6316725
A39: 33 | B39: Franklin | C39: 6042.203 | D39: 29 | E39: 4.8 | F39: 607.66 | G39: 100.57 | H39: 56.52 | I39: 175.09 | J39: 28.98 | K39: 39.63 | L39: 6.56 | M39: 0 | N39: 23.4 | O39: 3.87 | P39: 9.15 | Q39: =of:=[.D39]+[.F39]+[.I39]+[.K39]+[.N39] -> 874.78 | R39: =of:=[.Q39]/[.C39]*1000 -> 144.7783201
A40: 34 | B40: Frederick | C40: 14085.18534 | D40: 53.3 | E40: 3.78 | F40: 1063.69 | G40: 75.52 | H40: 102.6 | I40: 264.98 | J40: 18.81 | K40: 77.24 | L40: 5.48 | M40: 0.03 | N40: 16.99 | O40: 1.21 | P40: 0.3 | Q40: =of:=[.D40]+[.F40]+[.I40]+[.K40]+[.N40] -> 1476.2 | R40: =of:=[.Q40]/[.C40]*1000 -> 104.8051527
A41: 35 | B41: Giles | C41: 3537.30542 | D41: 11 | E41: 3.11 | F41: 190.15 | G41: 53.76 | H41: 24.45 | I41: 53 | J41: 14.98 | K41: 13 | L41: 3.68 | M41: 0 | N41: 9.76 | O41: 2.76 | P41: 0.1 | Q41: =of:=[.D41]+[.F41]+[.I41]+[.K41]+[.N41] -> 276.91 | R41: =of:=[.Q41]/[.C41]*1000 -> 78.28275117
A42: 36 | B42: Gloucester | C42: 4849.73876 | D42: 19.78 | E42: 4.08 | F42: 383.78 | G42: 79.13 | H42: 27.17 | I42: 65.64 | J42: 13.53 | K42: 26.53 | L42: 5.47 | M42: 0 | N42: 11 | O42: 2.27 | P42: 1.1 | Q42: =of:=[.D42]+[.F42]+[.I42]+[.K42]+[.N42] -> 506.73 | R42: =of:=[.Q42]/[.C42]*1000 -> 104.4860404
A43: 37 | B43: Goochland | C43: 2556.01137 | D43: 7.8 | E43: 3.05 | F43: 215.96 | G43: 84.49 | H43: 19.15 | I43: 35.11 | J43: 13.74 | K43: 13.22 | L43: 5.17 | M43: 0 | N43: 5.46 | O43: 2.14 | P43: 0 | Q43: =of:=[.D43]+[.F43]+[.I43]+[.K43]+[.N43] -> 277.55 | R43: =of:=[.Q43]/[.C43]*1000 -> 108.5871539
A44: 38 | B44: Grayson | C44: 1560.49992 | D44: 8.6 | E44: 5.51 | F44: 151.51 | G44: 97.09 | H44: 14.92 | I44: 27.8 | J44: 17.81 | K44: 10.35 | L44: 6.63 | M44: 0 | N44: 5 | O44: 3.2 | P44: 0.38 | Q44: =of:=[.D44]+[.F44]+[.I44]+[.K44]+[.N44] -> 203.26 | R44: =of:=[.Q44]/[.C44]*1000 -> 130.2531307
A45: 39 | B45: Greene | C45: 2791.17641 | D45: 13 | E45: 4.66 | F45: 241.81 | G45: 86.63 | H45: 45 | I45: 50 | J45: 17.91 | K45: 13 | L45: 4.66 | M45: 0 | N45: 2 | O45: 0.72 | P45: 0 | Q45: =of:=[.D45]+[.F45]+[.I45]+[.K45]+[.N45] -> 319.81 | R45: =of:=[.Q45]/[.C45]*1000 -> 114.5789277
A46: 40 | B46: Greensville/Emporia5 | C46: 2019.13531 | D46: 12.71 | E46: 6.29 | F46: 214.32 | G46: 106.14 | H46: 25.43 | I46: 60.59 | J46: 30.01 | K46: 8.19 | L46: 4.06 | M46: 0 | N46: 6.23 | O46: 3.09 | P46: 0.09 | Q46: =of:=[.D46]+[.F46]+[.I46]+[.K46]+[.N46] -> 302.04 | R46: =of:=[.Q46]/[.C46]*1000 -> 149.5887861
A47: 41 | B47: Halifax | C47: 4496.75159 | D47: 19 | E47: 4.23 | F47: 372.5 | G47: 82.84 | H47: 80 | I47: 145 | J47: 32.25 | K47: 32 | L47: 7.12 | M47: 0 | N47: 20 | O47: 4.45 | P47: 0 | Q47: =of:=[.D47]+[.F47]+[.I47]+[.K47]+[.N47] -> 588.5 | R47: =of:=[.Q47]/[.C47]*1000 -> 130.8722504
A48: 42 | B48: Hanover | C48: 16703.09001 | D48: 62.91 | E48: 3.77 | F48: 1477.94 | G48: 88.48 | H48: 96.09 | I48: 245.41 | J48: 14.69 | K48: 100.89 | L48: 6.04 | M48: 0 | N48: 22.1 | O48: 1.32 | P48: 1.47 | Q48: =of:=[.D48]+[.F48]+[.I48]+[.K48]+[.N48] -> 1909.25 | R48: =of:=[.Q48]/[.C48]*1000 -> 114.3051974
A49: 43 | B49: Henrico | C49: 50158.41624 | D49: 212 | E49: 4.23 | F49: 3594.02 | G49: 71.65 | H49: 313.3 | I49: 513.3 | J49: 10.23 | K49: 298 | L49: 5.94 | M49: 0 | N49: 102 | O49: 2.03 | P49: 0 | Q49: =of:=[.D49]+[.F49]+[.I49]+[.K49]+[.N49] -> 4719.32 | R49: =of:=[.Q49]/[.C49]*1000 -> 94.08829771
A50: 44 | B50: Henry | C50: 6826.6207 | D50: 24.97 | E50: 3.66 | F50: 460.96 | G50: 67.52 | H50: 29 | I50: 133 | J50: 19.48 | K50: 36 | L50: 5.27 | M50: 0 | N50: 14 | O50: 2.05 | P50: 0 | Q50: =of:=[.D50]+[.F50]+[.I50]+[.K50]+[.N50] -> 668.93 | R50: =of:=[.Q50]/[.C50]*1000 -> 97.98845276
A51: 45 | B51: Highland | C51: 210.00566 | D51: 2 | E51: 9.52 | F51: 32.5 | G51: 154.76 | H51: 2.5 | I51: 7 | J51: 33.33 | K51: 2 | L51: 9.52 | M51: 0 | N51: 0 | O51: 0 | P51: 0 | Q51: =of:=[.D51]+[.F51]+[.I51]+[.K51]+[.N51] -> 43.5 | R51: =of:=[.Q51]/[.C51]*1000 -> 207.1372743
A52: 46 | B52: Isle Of Wight | C52: 5516.79487 | D52: 22.5 | E52: 4.08 | F52: 402.75 | G52: 73 | H52: 2.5 | I52: 91 | J52: 16.5 | K52: 22.75 | L52: 4.12 | M52: 0 | N52: 9 | O52: 1.63 | P52: 0.1 | Q52: =of:=[.D52]+[.F52]+[.I52]+[.K52]+[.N52] -> 548 | R52: =of:=[.Q52]/[.C52]*1000 -> 99.333039
A53: 48 | B53: King George | C53: 4392.10107 | D53: 13 | E53: 2.96 | F53: 332.15 | G53: 75.62 | H53: 58 | I53: 117 | J53: 26.64 | K53: 19 | L53: 4.33 | M53: 0 | N53: 1 | O53: 0.23 | P53: 0 | Q53: =of:=[.D53]+[.F53]+[.I53]+[.K53]+[.N53] -> 482.15 | R53: =of:=[.Q53]/[.C53]*1000 -> 109.7766177
A54: 49 | B54: King & Queen | C54: 821.64098 | D54: 6 | E54: 7.3 | F54: 56.85 | G54: 69.19 | H54: 0.36 | I54: 19 | J54: 23.12 | K54: 3 | L54: 3.65 | M54: 0 | N54: 4 | O54: 4.87 | P54: 0 | Q54: =of:=[.D54]+[.F54]+[.I54]+[.K54]+[.N54] -> 88.85 | R54: =of:=[.Q54]/[.C54]*1000 -> 108.1372548
A55: 50 | B55: King William | C55: 2020.11696 | D55: 8 | E55: 3.96 | F55: 154 | G55: 76.23 | H55: 5.5 | I55: 11 | J55: 5.45 | K55: 12 | L55: 5.94 | M55: 0 | N55: 10 | O55: 4.95 | P55: 0 | Q55: =of:=[.D55]+[.F55]+[.I55]+[.K55]+[.N55] -> 195 | R55: =of:=[.Q55]/[.C55]*1000 -> 96.52906434
A56: 51 | B56: Lancaster | C56: 953.47864 | D56: 6 | E56: 6.29 | F56: 68.75 | G56: 72.1 | H56: 82.35 | I56: 13 | J56: 13.63 | K56: 4.52 | L56: 4.74 | M56: 0 | N56: 5 | O56: 5.24 | P56: 0 | Q56: =of:=[.D56]+[.F56]+[.I56]+[.K56]+[.N56] -> 97.27 | R56: =of:=[.Q56]/[.C56]*1000 -> 102.0159193
A57: 52 | B57: Lee | C57: 2969.9591 | D57: 15 | E57: 5.05 | F57: 266 | G57: 89.56 | H57: 115 | I57: 51 | J57: 17.17 | K57: 21.5 | L57: 7.24 | M57: 0 | N57: 9 | O57: 3.03 | P57: 19 | Q57: =of:=[.D57]+[.F57]+[.I57]+[.K57]+[.N57] -> 362.5 | R57: =of:=[.Q57]/[.C57]*1000 -> 122.0555529
A58: 53 | B58: Loudoun | C58: 82041.47687 | D58: 369.4 | E58: 4.5 | F58: 6552.94 | G58: 79.87 | H58: 687.85 | I58: 1516.69 | J58: 18.49 | K58: 447.11 | L58: 5.45 | M58: 8.97 | N58: 95.06 | O58: 1.16 | P58: 7.29 | Q58: =of:=[.D58]+[.F58]+[.I58]+[.K58]+[.N58] -> 8981.2 | R58: =of:=[.Q58]/[.C58]*1000 -> 109.4714569
A59: 54 | B59: Louisa | C59: 5037.44054 | D59: 16 | E59: 3.18 | F59: 432.7 | G59: 85.9 | H59: 46 | I59: 102.75 | J59: 20.4 | K59: 20 | L59: 3.97 | M59: 0 | N59: 18 | O59: 3.57 | P59: 0 | Q59: =of:=[.D59]+[.F59]+[.I59]+[.K59]+[.N59] -> 589.45 | R59: =of:=[.Q59]/[.C59]*1000 -> 117.0137881
A60: 55 | B60: Lunenburg | C60: 1551.75129 | D60: 8.08 | E60: 5.21 | F60: 123.24 | G60: 79.42 | H60: 17.13 | I60: 34.22 | J60: 22.05 | K60: 11 | L60: 7.09 | M60: 0 | N60: 5 | O60: 3.22 | P60: 0.21 | Q60: =of:=[.D60]+[.F60]+[.I60]+[.K60]+[.N60] -> 181.54 | R60: =of:=[.Q60]/[.C60]*1000 -> 116.9903973
A61: 56 | B61: Madison | C61: 1614.18596 | D61: 11 | E61: 6.81 | F61: 134.1 | G61: 83.08 | H61: 23 | I61: 64 | J61: 39.65 | K61: 8 | L61: 4.96 | M61: 0 | N61: 10 | O61: 6.2 | P61: 0 | Q61: =of:=[.D61]+[.F61]+[.I61]+[.K61]+[.N61] -> 227.1 | R61: =of:=[.Q61]/[.C61]*1000 -> 140.6901098
A62: 57 | B62: Mathews | C62: 803.24573 | D62: 5 | E62: 6.22 | F62: 82.45 | G62: 102.65 | H62: 8 | I62: 26 | J62: 32.37 | K62: 6 | L62: 7.47 | M62: 0 | N62: 0 | O62: 0 | P62: 0 | Q62: =of:=[.D62]+[.F62]+[.I62]+[.K62]+[.N62] -> 119.45 | R62: =of:=[.Q62]/[.C62]*1000 -> 148.7091628
A63: 58 | B63: Mecklenburg | C63: 3864.22746 | D63: 18 | E63: 4.66 | F63: 363 | G63: 93.94 | H63: 24.5 | I63: 83 | J63: 21.48 | K63: 21 | L63: 5.43 | M63: 0 | N63: 2 | O63: 0.52 | P63: 1 | Q63: =of:=[.D63]+[.F63]+[.I63]+[.K63]+[.N63] -> 487 | R63: =of:=[.Q63]/[.C63]*1000 -> 126.0277779
A64: 59 | B64: Middlesex | C64: 1159.53105 | D64: 6 | E64: 5.17 | F64: 100.38 | G64: 86.57 | H64: 5 | I64: 20 | J64: 17.25 | K64: 7 | L64: 6.04 | M64: 0 | N64: 7 | O64: 6.04 | P64: 0 | Q64: =of:=[.D64]+[.F64]+[.I64]+[.K64]+[.N64] -> 140.38 | R64: =of:=[.Q64]/[.C64]*1000 -> 121.0661845
A65: 60 | B65: Montgomery | C65: 9517.60013 | D65: 44.8 | E65: 4.71 | F65: 813.6 | G65: 85.48 | H65: 92.29 | I65: 249.53 | J65: 26.22 | K65: 53.83 | L65: 5.66 | M65: 3.05 | N65: 24 | O65: 2.52 | P65: 0.46 | Q65: =of:=[.D65]+[.F65]+[.I65]+[.K65]+[.N65] -> 1185.76 | R65: =of:=[.Q65]/[.C65]*1000 -> 124.5860284
A66: 62 | B66: Nelson | C66: 1470.49847 | D66: 8 | E66: 5.44 | F66: 143.23 | G66: 97.4 | H66: 14.24 | I66: 39 | J66: 26.52 | K66: 10.52 | L66: 7.15 | M66: 0.02 | N66: 6.65 | O66: 4.52 | P66: 0.18 | Q66: =of:=[.D66]+[.F66]+[.I66]+[.K66]+[.N66] -> 207.4 | R66: =of:=[.Q66]/[.C66]*1000 -> 141.0406092
A67: 63 | B67: New Kent | C67: 3406.86291 | D67: 12 | E67: 3.52 | F67: 253.25 | G67: 74.34 | H67: 0 | I67: 60 | J67: 17.61 | K67: 17 | L67: 4.99 | M67: 0 | N67: 6 | O67: 1.76 | P67: 0 | Q67: =of:=[.D67]+[.F67]+[.I67]+[.K67]+[.N67] -> 348.25 | R67: =of:=[.Q67]/[.C67]*1000 -> 102.2201389
A68: 65 | B68: Northampton | C68: 1320.31626 | D68: 7.11 | E68: 5.39 | F68: 118.59 | G68: 89.82 | H68: 0 | I68: 42.67 | J68: 32.32 | K68: 10.19 | L68: 7.72 | M68: 0 | N68: 7.87 | O68: 5.96 | P68: 0 | Q68: =of:=[.D68]+[.F68]+[.I68]+[.K68]+[.N68] -> 186.43 | R68: =of:=[.Q68]/[.C68]*1000 -> 141.201018
A69: 66 | B69: Northumberland | C69: 1088.65599 | D69: 6 | E69: 5.51 | F69: 97.2 | G69: 89.28 | H69: 8.48 | I69: 27 | J69: 24.8 | K69: 6.67 | L69: 6.13 | M69: 0 | N69: 3 | O69: 2.76 | P69: 0 | Q69: =of:=[.D69]+[.F69]+[.I69]+[.K69]+[.N69] -> 139.87 | R69: =of:=[.Q69]/[.C69]*1000 -> 128.4795209
A70: 67 | B70: Nottoway | C70: 1745.04073 | D70: 10 | E70: 5.73 | F70: 126.25 | G70: 72.35 | H70: 50 | I70: 11 | J70: 6.3 | K70: 11 | L70: 6.3 | M70: 0 | N70: 3 | O70: 1.72 | P70: 5 | Q70: =of:=[.D70]+[.F70]+[.I70]+[.K70]+[.N70] -> 161.25 | R70: =of:=[.Q70]/[.C70]*1000 -> 92.40471997
A71: 68 | B71: Orange | C71: 5051.99246 | D71: 19 | E71: 3.76 | F71: 354.9 | G71: 70.25 | H71: 43 | I71: 76 | J71: 15.04 | K71: 27.7 | L71: 5.48 | M71: 0 | N71: 14 | O71: 2.77 | P71: 5 | Q71: =of:=[.D71]+[.F71]+[.I71]+[.K71]+[.N71] -> 491.6 | R71: =of:=[.Q71]/[.C71]*1000 -> 97.30814206
A72: 69 | B72: Page | C72: 2974.70592 | D72: 15 | E72: 5.04 | F72: 276.66 | G72: 93 | H72: 15.51 | I72: 78 | J72: 26.22 | K72: 19.66 | L72: 6.61 | M72: 0.02 | N72: 5 | O72: 1.68 | P72: 0.32 | Q72: =of:=[.D72]+[.F72]+[.I72]+[.K72]+[.N72] -> 394.32 | R72: =of:=[.Q72]/[.C72]*1000 -> 132.5576412
A73: 70 | B73: Patrick | C73: 2353.64349 | D73: 12 | E73: 5.1 | F73: 184.86 | G73: 78.54 | H73: 8.17 | I73: 81.33 | J73: 34.55 | K73: 11 | L73: 4.67 | M73: 0 | N73: 6.4 | O73: 2.72 | P73: 0.19 | Q73: =of:=[.D73]+[.F73]+[.I73]+[.K73]+[.N73] -> 295.59 | R73: =of:=[.Q73]/[.C73]*1000 -> 125.588264
A74: 71 | B74: Pittsylvania | C74: 7665.04186 | D74: 37 | E74: 4.83 | F74: 633.17 | G74: 82.6 | H74: 42.51 | I74: 150.9 | J74: 19.69 | K74: 44.81 | L74: 5.85 | M74: 0 | N74: 21.14 | O74: 2.76 | P74: 1.94 | Q74: =of:=[.D74]+[.F74]+[.I74]+[.K74]+[.N74] -> 887.02 | R74: =of:=[.Q74]/[.C74]*1000 -> 115.7227862
A75: 72 | B75: Powhatan | C75: 4132.63344 | D75: 17.8 | E75: 4.31 | F75: 315.81 | G75: 76.42 | H75: 17.03 | I75: 85.72 | J75: 20.74 | K75: 23.18 | L75: 5.61 | M75: 0 | N75: 9.72 | O75: 2.35 | P75: 0.22 | Q75: =of:=[.D75]+[.F75]+[.I75]+[.K75]+[.N75] -> 452.23 | R75: =of:=[.Q75]/[.C75]*1000 -> 109.4290134
A76: 73 | B76: Prince Edward | C76: 1831.59758 | D76: 12 | E76: 6.55 | F76: 163.5 | G76: 89.27 | H76: 24 | I76: 20.75 | J76: 11.33 | K76: 8 | L76: 4.37 | M76: 0 | N76: 13 | O76: 7.1 | P76: 0 | Q76: =of:=[.D76]+[.F76]+[.I76]+[.K76]+[.N76] -> 217.25 | R76: =of:=[.Q76]/[.C76]*1000 -> 118.6122991
A77: 74 | B77: Prince George | C77: 5943.13891 | D77: 23 | E77: 3.87 | F77: 420 | G77: 70.67 | H77: 0 | I77: 66 | J77: 11.11 | K77: 29 | L77: 4.88 | M77: 0 | N77: 11 | O77: 1.85 | P77: 0 | Q77: =of:=[.D77]+[.F77]+[.I77]+[.K77]+[.N77] -> 549 | R77: =of:=[.Q77]/[.C77]*1000 -> 92.37542792
A78: 75 | B78: Prince William | C78: 90298.87971 | D78: 377.33 | E78: 4.18 | F78: 6299.52 | G78: 69.76 | H78: 423.59 | I78: 1267.51 | J78: 14.04 | K78: 435.36 | L78: 4.82 | M78: 0 | N78: 68.43 | O78: 0.76 | P78: 9.02 | Q78: =of:=[.D78]+[.F78]+[.I78]+[.K78]+[.N78] -> 8448.15 | R78: =of:=[.Q78]/[.C78]*1000 -> 93.55763911
A79: 77 | B79: Pulaski | C79: 4312.39066 | D79: 19 | E79: 4.41 | F79: 329 | G79: 76.29 | H79: 30 | I79: 54 | J79: 12.52 | K79: 22 | L79: 5.1 | M79: 0 | N79: 5 | O79: 1.16 | P79: 0 | Q79: =of:=[.D79]+[.F79]+[.I79]+[.K79]+[.N79] -> 429 | R79: =of:=[.Q79]/[.C79]*1000 -> 99.48078313
A80: 78 | B80: Rappahannock | C80: 767.28235 | D80: 3 | E80: 3.91 | F80: 75.4 | G80: 98.27 | H80: 7.15 | I80: 21.13 | J80: 27.54 | K80: 6 | L80: 7.82 | M80: 0 | N80: 0 | O80: 0 | P80: 0 | Q80: =of:=[.D80]+[.F80]+[.I80]+[.K80]+[.N80] -> 105.53 | R80: =of:=[.Q80]/[.C80]*1000 -> 137.5373746
A81: 79 | B81: Richmond | C81: 1255.94943 | D81: 5 | E81: 3.98 | F81: 96.46 | G81: 76.8 | H81: 3.89 | I81: 21.85 | J81: 17.4 | K81: 10.51 | L81: 8.37 | M81: 0 | N81: 10.35 | O81: 8.24 | P81: 0.75 | Q81: =of:=[.D81]+[.F81]+[.I81]+[.K81]+[.N81] -> 144.17 | R81: =of:=[.Q81]/[.C81]*1000 -> 114.7896536
A82: 80 | B82: Roanoke | C82: 13657.3589 | D82: 65.01 | E82: 4.76 | F82: 1149.38 | G82: 84.16 | H82: 115.78 | I82: 320.95 | J82: 23.5 | K82: 84.28 | L82: 6.17 | M82: 0.08 | N82: 20.2 | O82: 1.48 | P82: 0.57 | Q82: =of:=[.D82]+[.F82]+[.I82]+[.K82]+[.N82] -> 1639.82 | R82: =of:=[.Q82]/[.C82]*1000 -> 120.0686027
A83: 81 | B83: Rockbridge | C83: 2451.79647 | D83: 12 | E83: 4.89 | F83: 235.1 | G83: 95.89 | H83: 26.8 | I83: 44.6 | J83: 18.19 | K83: 16.4 | L83: 6.69 | M83: 0 | N83: 4.8 | O83: 1.96 | P83: 0 | Q83: =of:=[.D83]+[.F83]+[.I83]+[.K83]+[.N83] -> 312.9 | R83: =of:=[.Q83]/[.C83]*1000 -> 127.6207074
A84: 82 | B84: Rockingham | C84: 10737.70657 | D84: 54 | E84: 5.03 | F84: 943.89 | G84: 87.9 | H84: 61.45 | I84: 282 | J84: 26.26 | K84: 65.8 | L84: 6.13 | M84: 0.02 | N84: 40.97 | O84: 3.82 | P84: 0.11 | Q84: =of:=[.D84]+[.F84]+[.I84]+[.K84]+[.N84] -> 1386.66 | R84: =of:=[.Q84]/[.C84]*1000 -> 129.1393084
A85: 83 | B85: Russell | C85: 3418.52498 | D85: 21.12 | E85: 6.18 | F85: 304.61 | G85: 89.11 | H85: 34.48 | I85: 61.9 | J85: 18.11 | K85: 22.69 | L85: 6.64 | M85: 0.44 | N85: 37.18 | O85: 10.88 | P85: 3.21 | Q85: =of:=[.D85]+[.F85]+[.I85]+[.K85]+[.N85] -> 447.5 | R85: =of:=[.Q85]/[.C85]*1000 -> 130.9044113
A86: 84 | B86: Scott | C86: 4247.33448 | D86: 18 | E86: 4.24 | F86: 367 | G86: 86.41 | H86: 11 | I86: 33 | J86: 7.77 | K86: 24 | L86: 5.65 | M86: 0 | N86: 6 | O86: 1.41 | P86: 4 | Q86: =of:=[.D86]+[.F86]+[.I86]+[.K86]+[.N86] -> 448 | R86: =of:=[.Q86]/[.C86]*1000 -> 105.4779185
A87: 85 | B87: Shenandoah | C87: 5603.4826 | D87: 26.75 | E87: 4.77 | F87: 442.16 | G87: 78.91 | H87: 58.13 | I87: 114 | J87: 20.34 | K87: 22.85 | L87: 4.08 | M87: 0 | N87: 13 | O87: 2.32 | P87: 2 | Q87: =of:=[.D87]+[.F87]+[.I87]+[.K87]+[.N87] -> 618.76 | R87: =of:=[.Q87]/[.C87]*1000 -> 110.4241851
A88: 86 | B88: Smyth | C88: 3867.45239 | D88: 20.01 | E88: 5.17 | F88: 369.31 | G88: 95.49 | H88: 18.26 | I88: 88.14 | J88: 22.79 | K88: 23.54 | L88: 6.09 | M88: 0 | N88: 13.79 | O88: 3.57 | P88: 0.06 | Q88: =of:=[.D88]+[.F88]+[.I88]+[.K88]+[.N88] -> 514.79 | R88: =of:=[.Q88]/[.C88]*1000 -> 133.1082966
A89: 87 | B89: Southampton | C89: 2438.36267 | D89: 11 | E89: 4.51 | F89: 146.59 | G89: 60.12 | H89: 25.47 | I89: 51 | J89: 20.92 | K89: 11.27 | L89: 4.62 | M89: 0 | N89: 8.09 | O89: 3.32 | P89: 0.42 | Q89: =of:=[.D89]+[.F89]+[.I89]+[.K89]+[.N89] -> 227.95 | R89: =of:=[.Q89]/[.C89]*1000 -> 93.48486294
A90: 88 | B90: Spotsylvania | C90: 23647.67447 | D90: 73 | E90: 3.09 | F90: 1595.91 | G90: 67.49 | H90: 142.69 | I90: 541.19 | J90: 22.89 | K90: 109.5 | L90: 4.63 | M90: 0 | N90: 21 | O90: 0.89 | P90: 1.79 | Q90: =of:=[.D90]+[.F90]+[.I90]+[.K90]+[.N90] -> 2340.6 | R90: =of:=[.Q90]/[.C90]*1000 -> 98.97802014
A91: 89 | B91: Stafford | C91: 31363.35148 | D91: 91.86 | E91: 2.93 | F91: 2100.33 | G91: 66.97 | H91: 150.06 | I91: 688.93 | J91: 21.97 | K91: 137.4 | L91: 4.38 | M91: 0 | N91: 60.05 | O91: 1.91 | P91: 4.01 | Q91: =of:=[.D91]+[.F91]+[.I91]+[.K91]+[.N91] -> 3078.57 | R91: =of:=[.Q91]/[.C91]*1000 -> 98.15819594
A92: 90 | B92: Surry | C92: 685.88067 | D92: 6 | E92: 8.75 | F92: 83.2 | G92: 121.3 | H92: 12 | I92: 22 | J92: 32.08 | K92: 1 | L92: 1.46 | M92: 0 | N92: 2 | O92: 2.92 | P92: 0 | Q92: =of:=[.D92]+[.F92]+[.I92]+[.K92]+[.N92] -> 114.2 | R92: =of:=[.Q92]/[.C92]*1000 -> 166.5012662
A93: 91 | B93: Sussex | C93: 986.53447 | D93: 6 | E93: 6.08 | F93: 101.96 | G93: 103.35 | H93: 10.01 | I93: 26.74 | J93: 27.1 | K93: 9 | L93: 9.12 | M93: 0 | N93: 3.46 | O93: 3.51 | P93: 0 | Q93: =of:=[.D93]+[.F93]+[.I93]+[.K93]+[.N93] -> 147.16 | R93: =of:=[.Q93]/[.C93]*1000 -> 149.1686347
A94: 92 | B94: Tazewell | C94: 5269.56665 | D94: 24.56 | E94: 4.66 | F94: 407.18 | G94: 77.27 | H94: 41.79 | I94: 118.17 | J94: 22.42 | K94: 26.21 | L94: 4.97 | M94: 1.32 | N94: 14.1 | O94: 2.68 | P94: 0 | Q94: =of:=[.D94]+[.F94]+[.I94]+[.K94]+[.N94] -> 590.22 | R94: =of:=[.Q94]/[.C94]*1000 -> 112.0054151
A95: 93 | B95: Warren | C95: 5041.43894 | D95: 21 | E95: 4.17 | F95: 418.47 | G95: 83.01 | H95: 0 | I95: 133.55 | J95: 26.49 | K95: 25.34 | L95: 5.03 | M95: 0 | N95: 8.35 | O95: 1.66 | P95: 0 | Q95: =of:=[.D95]+[.F95]+[.I95]+[.K95]+[.N95] -> 606.71 | R95: =of:=[.Q95]/[.C95]*1000 -> 120.3446094
A96: 94 | B96: Washington | C96: 6665.4104 | D96: 28 | E96: 4.2 | F96: 552.5 | G96: 82.89 | H96: 75 | I96: 44.5 | J96: 6.68 | K96: 33.5 | L96: 5.03 | M96: 0 | N96: 12 | O96: 1.8 | P96: 0.1 | Q96: =of:=[.D96]+[.F96]+[.I96]+[.K96]+[.N96] -> 670.5 | R96: =of:=[.Q96]/[.C96]*1000 -> 100.5939559
A97: 95 | B97: Westmoreland | C97: 1457.29225 | D97: 9 | E97: 6.18 | F97: 138.6 | G97: 95.11 | H97: 26.83 | I97: 32.25 | J97: 22.13 | K97: 9 | L97: 6.18 | M97: 0 | N97: 1 | O97: 0.69 | P97: 3.75 | Q97: =of:=[.D97]+[.F97]+[.I97]+[.K97]+[.N97] -> 189.85 | R97: =of:=[.Q97]/[.C97]*1000 -> 130.2758592
A98: 96 | B98: Wise | C98: 5794.92524 | D98: 21.91 | E98: 3.78 | F98: 517.75 | G98: 89.35 | H98: 22.02 | I98: 11.54 | J98: 1.99 | K98: 27.54 | L98: 4.75 | M98: 0 | N98: 32.33 | O98: 5.58 | P98: 1.19 | Q98: =of:=[.D98]+[.F98]+[.I98]+[.K98]+[.N98] -> 611.07 | R98: =of:=[.Q98]/[.C98]*1000 -> 105.4491602
A99: 97 | B99: Wythe | C99: 3683.5141 | D99: 19 | E99: 5.16 | F99: 324.92 | G99: 88.21 | H99: 26.78 | I99: 93.73 | J99: 25.45 | K99: 25 | L99: 6.79 | M99: 0 | N99: 25.09 | O99: 6.81 | P99: 0 | Q99: =of:=[.D99]+[.F99]+[.I99]+[.K99]+[.N99] -> 487.74 | R99: =of:=[.Q99]/[.C99]*1000 -> 132.4116012
A100: 98 | B100: York | C100: 12505.80892 | D100: 47 | E100: 3.76 | F100: 938.8 | G100: 75.07 | H100: 154.62 | I100: 301.93 | J100: 24.14 | K100: 66 | L100: 5.28 | M100: 0 | N100: 15 | O100: 1.2 | P100: 0.08 | Q100: =of:=[.D100]+[.F100]+[.I100]+[.K100]+[.N100] -> 1368.73 | R100: =of:=[.Q100]/[.C100]*1000 -> 109.4475382
A101: no data | B101: CITIES
A102: 101 | B102: Alexandria | C102: 16567.82991 | D102: 73.8 | E102: 4.45 | F102: 1305.56 | G102: 78.8 | H102: 126.5 | I102: 194 | J102: 11.71 | K102: 95.45 | L102: 5.76 | M102: 0 | N102: 38.8 | O102: 2.34 | P102: 0.3 | Q102: =of:=[.D102]+[.F102]+[.I102]+[.K102]+[.N102] -> 1707.61 | R102: =of:=[.Q102]/[.C102]*1000 -> 103.0678133
A103: 102 | B103: Bristol | C103: 2151.43398 | D103: 8.75 | E103: 4.07 | F103: 222 | G103: 103.19 | H103: 31.47 | I103: 82 | J103: 38.11 | K103: 12 | L103: 5.58 | M103: 0 | N103: 15 | O103: 6.97 | P103: 0 | Q103: =of:=[.D103]+[.F103]+[.I103]+[.K103]+[.N103] -> 339.75 | R103: =of:=[.Q103]/[.C103]*1000 -> 157.9179297
A104: 103 | B104: Buena Vista | C104: 831.71934 | D104: 5 | E104: 6.01 | F104: 58 | G104: 69.74 | H104: 8 | I104: 8 | J104: 9.62 | K104: 6 | L104: 7.21 | M104: 0 | N104: 1 | O104: 1.2 | P104: 0 | Q104: =of:=[.D104]+[.F104]+[.I104]+[.K104]+[.N104] -> 78 | R104: =of:=[.Q104]/[.C104]*1000 -> 93.78163552
A105: 104 | B105: Charlottesville | C105: 4257.65041 | D105: 27 | E105: 6.34 | F105: 402.1 | G105: 94.44 | H105: 21 | I105: 82.1 | J105: 19.28 | K105: 43 | L105: 10.1 | M105: 0 | N105: 34.5 | O105: 8.1 | P105: 0 | Q105: =of:=[.D105]+[.F105]+[.I105]+[.K105]+[.N105] -> 588.7 | R105: =of:=[.Q105]/[.C105]*1000 -> 138.26875
A106: 106 | B106: Colonial Heights | C106: 2884.90785 | D106: 11 | E106: 3.81 | F106: 222.19 | G106: 77.02 | H106: 26.36 | I106: 74 | J106: 25.65 | K106: 16 | L106: 5.55 | M106: 0 | N106: 7 | O106: 2.43 | P106: 18 | Q106: =of:=[.D106]+[.F106]+[.I106]+[.K106]+[.N106] -> 330.19 | R106: =of:=[.Q106]/[.C106]*1000 -> 114.4542624
A107: 107 | B107: Covington | C107: 0 | D107: 0 | E107: 0 | F107: 0 | G107: 0 | H107: 0 | I107: 0 | J107: 0 | K107: 0 | L107: 0 | M107: 0 | N107: 0 | O107: 0 | P107: 0 | Q107: =of:=[.D107]+[.F107]+[.I107]+[.K107]+[.N107] -> 0 | R107: =of:=[.Q107]/[.C107]*1000 -> 
A108: 108 | B108: Danville | C108: 5497.46143 | D108: 37.5 | E108: 6.82 | F108: 457.01 | G108: 83.13 | H108: 31.44 | I108: 138.92 | J108: 25.27 | K108: 27.4 | L108: 4.98 | M108: 0 | N108: 44.95 | O108: 8.18 | P108: 0.97 | Q108: =of:=[.D108]+[.F108]+[.I108]+[.K108]+[.N108] -> 705.78 | R108: =of:=[.Q108]/[.C108]*1000 -> 128.3828925
A109: 109 | B109: Falls Church | C109: 2621.11861 | D109: 10 | E109: 3.82 | F109: 210.6 | G109: 80.35 | H109: 15.75 | I109: 52.87 | J109: 20.17 | K109: 16.5 | L109: 6.3 | M109: 0 | N109: 1.5 | O109: 0.57 | P109: 0 | Q109: =of:=[.D109]+[.F109]+[.I109]+[.K109]+[.N109] -> 291.47 | R109: =of:=[.Q109]/[.C109]*1000 -> 111.2006145
A110: 110 | B110: Fredericksburg | C110: 3471.75224 | D110: 13 | E110: 3.74 | F110: 278 | G110: 80.07 | H110: 51 | I110: 81 | J110: 23.33 | K110: 17 | L110: 4.9 | M110: 0 | N110: 23 | O110: 6.62 | P110: 4 | Q110: =of:=[.D110]+[.F110]+[.I110]+[.K110]+[.N110] -> 412 | R110: =of:=[.Q110]/[.C110]*1000 -> 118.6720628
A111: 111 | B111: Galax | C111: 1413.96723 | D111: 7 | E111: 4.95 | F111: 113.21 | G111: 80.07 | H111: 10.47 | I111: 28 | J111: 19.8 | K111: 6 | L111: 4.24 | M111: 0 | N111: 6 | O111: 4.24 | P111: 0.25 | Q111: =of:=[.D111]+[.F111]+[.I111]+[.K111]+[.N111] -> 160.21 | R111: =of:=[.Q111]/[.C111]*1000 -> 113.3053133
A112: 112 | B112: Hampton | C112: 19514.46902 | D112: 85 | E112: 4.36 | F112: 1517.38 | G112: 77.76 | H112: 13.63 | I112: 233.02 | J112: 11.94 | K112: 112.52 | L112: 5.77 | M112: 0 | N112: 35.77 | O112: 1.83 | P112: 0.94 | Q112: =of:=[.D112]+[.F112]+[.I112]+[.K112]+[.N112] -> 1983.69 | R112: =of:=[.Q112]/[.C112]*1000 -> 101.6522662
A113: 113 | B113: Harrisonburg | C113: 6612.724 | D113: 28 | E113: 4.23 | F113: 569 | G113: 86.05 | H113: 18 | I113: 91 | J113: 13.76 | K113: 49 | L113: 7.41 | M113: 0.2 | N113: 13 | O113: 1.97 | P113: 1 | Q113: =of:=[.D113]+[.F113]+[.I113]+[.K113]+[.N113] -> 750 | R113: =of:=[.Q113]/[.C113]*1000 -> 113.417708
A114: 114 | B114: Hopewell | C114: 3859.5588 | D114: 16.88 | E114: 4.37 | F114: 298.56 | G114: 77.36 | H114: 21.49 | I114: 66.4 | J114: 17.2 | K114: 17.1 | L114: 4.43 | M114: 0 | N114: 26.43 | O114: 6.85 | P114: 3.96 | Q114: =of:=[.D114]+[.F114]+[.I114]+[.K114]+[.N114] -> 425.37 | R114: =of:=[.Q114]/[.C114]*1000 -> 110.2120792
A115: 115 | B115: Lynchburg | C115: 7478.23908 | D115: 37.61 | E115: 5.03 | F115: 647 | G115: 86.52 | H115: 81.21 | I115: 186.65 | J115: 24.96 | K115: 54.59 | L115: 7.3 | M115: 0.02 | N115: 25 | O115: 3.34 | P115: 0 | Q115: =of:=[.D115]+[.F115]+[.I115]+[.K115]+[.N115] -> 950.85 | R115: =of:=[.Q115]/[.C115]*1000 -> 127.148917
A116: 116 | B116: Martinsville | C116: 1785.16013 | D116: 9 | E116: 5.04 | F116: 151.6 | G116: 84.92 | H116: 19.26 | I116: 31.05 | J116: 17.39 | K116: 12 | L116: 6.72 | M116: 0 | N116: 11 | O116: 6.16 | P116: 0.81 | Q116: =of:=[.D116]+[.F116]+[.I116]+[.K116]+[.N116] -> 214.65 | R116: =of:=[.Q116]/[.C116]*1000 -> 120.2413142
A117: 117 | B117: Newport News | C117: 25725.60927 | D117: 93 | E117: 3.62 | F117: 1679.4 | G117: 65.28 | H117: 1 | I117: 349 | J117: 13.57 | K117: 136 | L117: 5.29 | M117: 0 | N117: 55.2 | O117: 2.15 | P117: 13 | Q117: =of:=[.D117]+[.F117]+[.I117]+[.K117]+[.N117] -> 2312.6 | R117: =of:=[.Q117]/[.C117]*1000 -> 89.8948583
A118: 118 | B118: Norfolk | C118: 26540.98572 | D118: 101 | E118: 3.81 | F118: 1771 | G118: 66.73 | H118: 276 | I118: 316 | J118: 11.91 | K118: 187.5 | L118: 7.06 | M118: 0.18 | N118: 198 | O118: 7.46 | P118: 4 | Q118: =of:=[.D118]+[.F118]+[.I118]+[.K118]+[.N118] -> 2573.5 | R118: =of:=[.Q118]/[.C118]*1000 -> 96.9632412
A119: 119 | B119: Norton | C119: 816.30277 | D119: 4 | E119: 4.9 | F119: 66.45 | G119: 81.4 | H119: 5.98 | I119: 14.8 | J119: 18.13 | K119: 4.4 | L119: 5.39 | M119: 0 | N119: 3 | O119: 3.68 | P119: 0 | Q119: =of:=[.D119]+[.F119]+[.I119]+[.K119]+[.N119] -> 92.65 | R119: =of:=[.Q119]/[.C119]*1000 -> 113.4995536
A120: 120 | B120: Petersburg | C120: 4426.61362 | D120: 18.7 | E120: 4.22 | F120: 303.67 | G120: 68.6 | H120: 47.55 | I120: 21.5 | J120: 4.86 | K120: 22.01 | L120: 4.97 | M120: 0 | N120: 23 | O120: 5.2 | P120: 4 | Q120: =of:=[.D120]+[.F120]+[.I120]+[.K120]+[.N120] -> 388.88 | R120: =of:=[.Q120]/[.C120]*1000 -> 87.85045034
A121: 121 | B121: Portsmouth | C121: 12587.22512 | D121: 54.59 | E121: 4.34 | F121: 801.74 | G121: 63.69 | H121: 22.78 | I121: 202.06 | J121: 16.05 | K121: 58.04 | L121: 4.61 | M121: 0 | N121: 30.03 | O121: 2.39 | P121: 4.02 | Q121: =of:=[.D121]+[.F121]+[.I121]+[.K121]+[.N121] -> 1146.46 | R121: =of:=[.Q121]/[.C121]*1000 -> 91.08123427
A122: 122 | B122: Radford | C122: 3181.87753 | D122: 8 | E122: 2.51 | F122: 134.97 | G122: 42.42 | H122: 7.25 | I122: 27.55 | J122: 8.66 | K122: 8 | L122: 2.51 | M122: 0.35 | N122: 3 | O122: 0.94 | P122: 0.32 | Q122: =of:=[.D122]+[.F122]+[.I122]+[.K122]+[.N122] -> 181.52 | R122: =of:=[.Q122]/[.C122]*1000 -> 57.04807878
A123: 123 | B123: Richmond City | C123: 20758.67219 | D123: 123 | E123: 5.93 | F123: 2153 | G123: 103.72 | H123: 83 | I123: 328 | J123: 15.8 | K123: 129 | L123: 6.21 | M123: 0 | N123: 125 | O123: 6.02 | P123: 1 | Q123: =of:=[.D123]+[.F123]+[.I123]+[.K123]+[.N123] -> 2858 | R123: =of:=[.Q123]/[.C123]*1000 -> 137.6773993
A124: 124 | B124: Roanoke City | C124: 13461.13163 | D124: 72.98 | E124: 5.42 | F124: 1113.54 | G124: 82.72 | H124: 0 | I124: 659.38 | J124: 48.98 | K124: 81.75 | L124: 6.07 | M124: 1 | N124: 86.93 | O124: 6.46 | P124: 0 | Q124: =of:=[.D124]+[.F124]+[.I124]+[.K124]+[.N124] -> 2014.58 | R124: =of:=[.Q124]/[.C124]*1000 -> 149.6590372
A125: 126 | B125: Staunton | C125: 2636.94716 | D125: 13 | E125: 4.93 | F125: 216.7 | G125: 82.18 | H125: 16.12 | I125: 63 | J125: 23.89 | K125: 16 | L125: 6.07 | M125: 0.02 | N125: 29.2 | O125: 11.07 | P125: 1.45 | Q125: =of:=[.D125]+[.F125]+[.I125]+[.K125]+[.N125] -> 337.9 | R125: =of:=[.Q125]/[.C125]*1000 -> 128.1406033
A126: 127 | B126: Suffolk | C126: 14266.76273 | D126: 51 | E126: 3.57 | F126: 1002 | G126: 70.23 | H126: 139.49 | I126: 235.91 | J126: 16.54 | K126: 61 | L126: 4.28 | M126: 0 | N126: 35 | O126: 2.45 | P126: 0.78 | Q126: =of:=[.D126]+[.F126]+[.I126]+[.K126]+[.N126] -> 1384.91 | R126: =of:=[.Q126]/[.C126]*1000 -> 97.07247721
A127: 128 | B127: Virginia Beach | C127: 63891.65648 | D127: 244.18 | E127: 3.82 | F127: 4728.78 | G127: 74.01 | H127: 350.74 | I127: 1122.59 | J127: 17.57 | K127: 355.76 | L127: 5.57 | M127: 2.82 | N127: 105.17 | O127: 1.65 | P127: 3.11 | Q127: =of:=[.D127]+[.F127]+[.I127]+[.K127]+[.N127] -> 6556.48 | R127: =of:=[.Q127]/[.C127]*1000 -> 102.6187199
A128: 130 | B128: Waynesboro | C128: 2876.08182 | D128: 15.04 | E128: 5.23 | F128: 247.58 | G128: 86.08 | H128: 24.89 | I128: 76.22 | J128: 26.5 | K128: 23.02 | L128: 8 | M128: 0 | N128: 12.94 | O128: 4.5 | P128: 1.2 | Q128: =of:=[.D128]+[.F128]+[.I128]+[.K128]+[.N128] -> 374.8 | R128: =of:=[.Q128]/[.C128]*1000 -> 130.3161813
A129: 131 | B129: Williamsburg/James City County5 | C129: 11318.17555 | D129: 44 | E129: 3.89 | F129: 861.02 | G129: 76.07 | H129: 104.4 | I129: 254.78 | J129: 22.51 | K129: 66 | L129: 5.83 | M129: 0 | N129: 48.57 | O129: 4.29 | P129: 1.91 | Q129: =of:=[.D129]+[.F129]+[.I129]+[.K129]+[.N129] -> 1274.37 | R129: =of:=[.Q129]/[.C129]*1000 -> 112.5950021
A130: 132 | B130: Winchester | C130: 4137.44283 | D130: 24 | E130: 5.8 | F130: 369.99 | G130: 89.42 | H130: 41.92 | I130: 89.01 | J130: 21.51 | K130: 25 | L130: 6.04 | M130: 0 | N130: 6.5 | O130: 1.57 | P130: 0.2 | Q130: =of:=[.D130]+[.F130]+[.I130]+[.K130]+[.N130] -> 514.5 | R130: =of:=[.Q130]/[.C130]*1000 -> 124.3521714
A131: 135 | B131: Franklin | C131: 1029.07299 | D131: 7.32 | E131: 7.11 | F131: 98.64 | G131: 95.85 | H131: 9.64 | I131: 13.33 | J131: 12.95 | K131: 4 | L131: 3.89 | M131: 0 | N131: 1 | O131: 0.97 | P131: 0 | Q131: =of:=[.D131]+[.F131]+[.I131]+[.K131]+[.N131] -> 124.29 | R131: =of:=[.Q131]/[.C131]*1000 -> 120.7786048
A132: 136 | B132: Chesapeake | C132: 40338.14458 | D132: 144.34 | E132: 3.58 | F132: 2924.94 | G132: 72.51 | H132: 231.91 | I132: 920.98 | J132: 22.83 | K132: 204.62 | L132: 5.07 | M132: 4.59 | N132: 96.24 | O132: 2.39 | P132: 0.61 | Q132: =of:=[.D132]+[.F132]+[.I132]+[.K132]+[.N132] -> 4291.12 | R132: =of:=[.Q132]/[.C132]*1000 -> 106.3787153
A133: 137 | B133: Lexington | C133: 504.27326 | D133: 2 | E133: 3.97 | F133: 44.9 | G133: 89.04 | H133: 4.29 | I133: 9.5 | J133: 18.84 | K133: 4 | L133: 7.93 | M133: 0 | N133: 0.14 | O133: 0.28 | P133: 0 | Q133: =of:=[.D133]+[.F133]+[.I133]+[.K133]+[.N133] -> 60.54 | R133: =of:=[.Q133]/[.C133]*1000 -> 120.0539565
A134: 139 | B134: Salem | C134: 4230.50642 | D134: 15.5 | E134: 3.66 | F134: 290.99 | G134: 68.78 | H134: 19.99 | I134: 101.41 | J134: 23.97 | K134: 19.2 | L134: 4.54 | M134: 0 | N134: 20.06 | O134: 4.74 | P134: 0 | Q134: =of:=[.D134]+[.F134]+[.I134]+[.K134]+[.N134] -> 447.16 | R134: =of:=[.Q134]/[.C134]*1000 -> 105.6989295
A135: 142 | B135: Poquoson | C135: 1961.02781 | D135: 9 | E135: 4.59 | F135: 150.61 | G135: 76.8 | H135: 13.87 | I135: 41 | J135: 20.91 | K135: 11.5 | L135: 5.86 | M135: 0.01 | N135: 1 | O135: 0.51 | P135: 1 | Q135: =of:=[.D135]+[.F135]+[.I135]+[.K135]+[.N135] -> 213.11 | R135: =of:=[.Q135]/[.C135]*1000 -> 108.6726047
A136: 143 | B136: Manassas | C136: 7482.78205 | D136: 26.48 | E136: 3.54 | F136: 513.69 | G136: 68.65 | H136: 49 | I136: 117.02 | J136: 15.64 | K136: 36.61 | L136: 4.89 | M136: 0 | N136: 12 | O136: 1.6 | P136: 0.28 | Q136: =of:=[.D136]+[.F136]+[.I136]+[.K136]+[.N136] -> 705.8 | R136: =of:=[.Q136]/[.C136]*1000 -> 94.32320697
A137: 144 | B137: Manassas Park | C137: 3415.42355 | D137: 10.83 | E137: 3.17 | F137: 250.57 | G137: 73.36 | H137: 12 | I137: 54.18 | J137: 15.86 | K137: 17 | L137: 4.98 | M137: 0 | N137: 10.5 | O137: 3.07 | P137: 0 | Q137: =of:=[.D137]+[.F137]+[.I137]+[.K137]+[.N137] -> 343.08 | R137: =of:=[.Q137]/[.C137]*1000 -> 100.4502062
A138: no data | B138: TOWNS | C138: no data | D138: no data | E138: no data | F138: no data | G138: no data | H138: no data | I138: no data | J138: no data | K138: no data | L138: no data | M138: no data | N138: no data | O138: no data | P138: no data | Q138: no data | R138: no data
A139: 202 | B139: Colonial Beach | C139: 561.12212 | D139: 3 | E139: 5.35 | F139: 50 | G139: 89.11 | H139: 2.5 | I139: 16.5 | J139: 29.41 | K139: 3.15 | L139: 5.61 | M139: 0 | N139: 1.2 | O139: 2.14 | P139: 0 | Q139: =of:=[.D139]+[.F139]+[.I139]+[.K139]+[.N139] -> 73.85 | R139: =of:=[.Q139]/[.C139]*1000 -> 131.6112792
A140: 207 | B140: West Point | C140: 825.51723 | D140: 5 | E140: 6.06 | F140: 77 | G140: 93.27 | H140: 12.54 | I140: 0 | J140: 0 | K140: 5 | L140: 6.06 | M140: 0 | N140: 1 | O140: 1.21 | P140: 0 | Q140: =of:=[.D140]+[.F140]+[.I140]+[.K140]+[.N140] -> 88 | R140: =of:=[.Q140]/[.C140]*1000 -> 106.5998344
A141: no data | B141: SCHOOL DIVISION SUBTOTAL | C141: =of:=SUM([.C7:.C140]) -> 1245834.556 | D141: =of:=SUM([.D7:.D140]) -> 5125.65 | E141: =of:=[.D141]/[.$C$141]*1000 -> 4.114230075 | F141: =of:=SUM([.F7:.F140]) -> 97943.93 | G141: =of:=[.F141]/[.$C$141]*1000 -> 78.61712416 | H141: =of:=SUM([.H7:.H140]) -> 8389.67 | I141: =of:=SUM([.I7:.I140]) -> 22237.72 | J141: =of:=[.I141]/[.$C$141]*1000 -> 17.84965739 | K141: =of:=SUM([.K7:.K140]) -> 6761.55 | L141: =of:=[.K141]/[.$C$141]*1000 -> 5.427325776 | M141: =of:=SUM([.M7:.M140]) -> 24.42 | N141: =of:=SUM([.N7:.N140]) -> 2978.89 | O141: =of:=[.N141]/[.$C$141]*1000 -> 2.391079927 | P141: =of:=SUM([.P7:.P140]) -> 187.38 | Q141: =of:=SUM([.Q7:.Q140]) -> 135047.74 | R141: =of:=[.Q141]/[.$C$141]*1000 -> 108.3994173
A142: no data | B142: GOVERNOR'S SCHOOLS | C142: no data | D142: no data | E142: no data | F142: no data | G142: no data | H142: no data | I142: no data | J142: no data | K142: no data | L142: no data | M142: no data | N142: no data | O142: no data | P142: no data | Q142: no data | R142: no data
A143: 260 | B143: Central Virginia | C143: N/A | D143: 0.5 | E143: N/A | F143: 6.5 | G143: N/A | H143: 1.15 | I143: 0 | J143: N/A | K143: 0 | L143: N/A | M143: 0 | N143: 0 | O143: N/A | P143: 0 | Q143: =of:=[.D143]+[.F143]+[.I143]+[.K143]+[.N143] -> 7 | R143: N/A
A144: 261 | B144: Southwest Virginia | C144: N/A | D144: 1 | E144: N/A | F144: 6 | G144: N/A | H144: 1 | I144: 0 | J144: N/A | K144: 0 | L144: N/A | M144: 0 | N144: 0 | O144: N/A | P144: 0 | Q144: =of:=[.D144]+[.F144]+[.I144]+[.K144]+[.N144] -> 7 | R144: N/A
A145: 262 | B145: Governor's School for the Arts | C145: N/A | D145: 2 | E145: N/A | F145: 26 | G145: N/A | H145: 0 | I145: 0 | J145: N/A | K145: 0 | L145: N/A | M145: 0 | N145: 0 | O145: N/A | P145: 0 | Q145: =of:=[.D145]+[.F145]+[.I145]+[.K145]+[.N145] -> 28 | R145: N/A
A146: 263 | B146: Roanoke Valley | C146: N/A | D146: 1 | E146: N/A | F146: 12 | G146: N/A | H146: 0 | I146: 0 | J146: N/A | K146: 1 | L146: N/A | M146: 0 | N146: 0 | O146: N/A | P146: 0 | Q146: =of:=[.D146]+[.F146]+[.I146]+[.K146]+[.N146] -> 14 | R146: N/A
A147: 264 | B147: New Horizons | C147: N/A | D147: 0 | E147: N/A | F147: 13 | G147: N/A | H147: 0 | I147: 0 | J147: N/A | K147: 0 | L147: N/A | M147: 0 | N147: 0 | O147: N/A | P147: 0 | Q147: =of:=[.D147]+[.F147]+[.I147]+[.K147]+[.N147] -> 13 | R147: N/A
A148: 265 | B148: Shenandoah Valley | C148: N/A | D148: 1 | E148: N/A | F148: 13 | G148: N/A | H148: 3 | I148: 0 | J148: N/A | K148: 1 | L148: N/A | M148: 0 | N148: 0 | O148: N/A | P148: 0 | Q148: =of:=[.D148]+[.F148]+[.I148]+[.K148]+[.N148] -> 15 | R148: N/A
A149: 266 | B149: Global Economics and Technology | C149: N/A | D149: 0 | E149: N/A | F149: 9 | G149: N/A | H149: 1 | I149: 0 | J149: N/A | K149: 0 | L149: N/A | M149: 0 | N149: 0 | O149: N/A | P149: 0 | Q149: =of:=[.D149]+[.F149]+[.I149]+[.K149]+[.N149] -> 9 | R149: N/A
A150: 267 | B150: Appomattox Regional | C150: N/A | D150: 0 | E150: N/A | F150: 32.5 | G150: N/A | H150: 1.59 | I150: 0 | J150: N/A | K150: 3 | L150: N/A | M150: 0 | N150: 0 | O150: N/A | P150: 0 | Q150: =of:=[.D150]+[.F150]+[.I150]+[.K150]+[.N150] -> 35.5 | R150: N/A
A151: 268 | B151: A. Linwood Holton | C151: N/A | D151: 0 | E151: N/A | F151: 7 | G151: N/A | H151: 0 | I151: 0 | J151: N/A | K151: 0 | L151: N/A | M151: 0 | N151: 0 | O151: N/A | P151: 0 | Q151: =of:=[.D151]+[.F151]+[.I151]+[.K151]+[.N151] -> 7 | R151: N/A
A152: 269 | B152: Chesapeake | C152: N/A | D152: 0 | E152: N/A | F152: 14.75 | G152: N/A | H152: 0.01 | I152: 0 | J152: N/A | K152: 0 | L152: N/A | M152: 0 | N152: 0 | O152: N/A | P152: 0 | Q152: =of:=[.D152]+[.F152]+[.I152]+[.K152]+[.N152] -> 14.75 | R152: N/A
A153: 270 | B153: Commonwealth | C153: N/A | D153: 0 | E153: N/A | F153: 35.1 | G153: N/A | H153: 0.3 | I153: 0 | J153: N/A | K153: 0.3 | L153: N/A | M153: 0 | N153: 0 | O153: N/A | P153: 0 | Q153: =of:=[.D153]+[.F153]+[.I153]+[.K153]+[.N153] -> 35.4 | R153: N/A
A154: 271 | B154: Maggie L. Walker | C154: N/A | D154: 3 | E154: N/A | F154: 58 | G154: N/A | H154: 2 | I154: 0 | J154: N/A | K154: 5 | L154: N/A | M154: 0 | N154: 0 | O154: N/A | P154: 0 | Q154: =of:=[.D154]+[.F154]+[.I154]+[.K154]+[.N154] -> 66 | R154: N/A
A155: 272 | B155: Thomas Jefferson High School | C155: N/A | D155: 5.01 | E155: N/A | F155: 124.46 | G155: N/A | H155: 7.97 | I155: 5 | J155: N/A | K155: 12 | L155: N/A | M155: 0 | N155: 0 | O155: N/A | P155: 0 | Q155: =of:=[.D155]+[.F155]+[.I155]+[.K155]+[.N155] -> 146.47 | R155: N/A
A156: 273 | B156: Blue Ridge | C156: N/A | D156: 0 | E156: N/A | F156: 3.5 | G156: N/A | H156: 0 | I156: 0 | J156: N/A | K156: 0 | L156: N/A | M156: 0 | N156: 0 | O156: N/A | P156: 0 | Q156: =of:=[.D156]+[.F156]+[.I156]+[.K156]+[.N156] -> 3.5 | R156: N/A
A157: 274 | B157: Jackson River | C157: N/A | D157: 0 | E157: N/A | F157: 0 | G157: N/A | H157: 0 | I157: 0 | J157: N/A | K157: 0 | L157: N/A | M157: 0 | N157: 0 | O157: N/A | P157: 0 | Q157: =of:=[.D157]+[.F157]+[.I157]+[.K157]+[.N157] -> 0 | R157: N/A
A158: 275 | B158: Massanutten Regional Governor's School | C158: N/A | D158: 1 | E158: N/A | F158: 4 | G158: N/A | H158: 0 | I158: 0 | J158: N/A | K158: 0 | L158: N/A | M158: 0 | N158: 0 | O158: N/A | P158: 0 | Q158: =of:=[.D158]+[.F158]+[.I158]+[.K158]+[.N158] -> 5 | R158: N/A
A159: 276 | B159: Piedmont | C159: N/A | D159: 0 | E159: N/A | F159: 10 | G159: N/A | H159: 0.3 | I159: 0 | J159: N/A | K159: 0 | L159: N/A | M159: 0 | N159: 0 | O159: N/A | P159: 0 | Q159: =of:=[.D159]+[.F159]+[.I159]+[.K159]+[.N159] -> 10 | R159: N/A
A160: 277 | B160: Mountain Vista | C160: N/A | D160: 1 | E160: N/A | F160: 12 | G160: N/A | H160: 0 | I160: 0 | J160: N/A | K160: 0.5 | L160: N/A | M160: 0 | N160: 0 | O160: N/A | P160: 0 | Q160: =of:=[.D160]+[.F160]+[.I160]+[.K160]+[.N160] -> 13.5 | R160: N/A
A161: 278 | B161: Governor's School at Innovation Park | C161: N/A | D161: 1 | E161: N/A | F161: 8 | G161: N/A | H161: 0.04 | I161: 0 | J161: N/A | K161: 1 | L161: N/A | M161: 0 | N161: 0 | O161: N/A | P161: 0 | Q161: =of:=[.D161]+[.F161]+[.I161]+[.K161]+[.N161] -> 10 | R161: N/A
A162: no data | B162: REGIONAL SPECIAL EDUCATION PROGRAMS | C162: no data | D162: no data | E162: no data | F162: no data | G162: no data | H162: no data | I162: no data | J162: no data | K162: no data | L162: no data | M162: no data | N162: no data | O162: no data | P162: no data | Q162: no data | R162: no data
A163: 280 | B163: Coop Center For Exceptional Children | C163: N/A | D163: 0 | E163: N/A | F163: 0 | G163: N/A | H163: 0 | I163: 0 | J163: N/A | K163: 0 | L163: N/A | M163: 0 | N163: 0 | O163: N/A | P163: 0 | Q163: =of:=[.D163]+[.F163]+[.I163]+[.K163]+[.N163] -> 0 | R163: N/A
A164: 281 | B164: Middle Peninsula Regional Special Education Center | C164: N/A | D164: 0 | E164: N/A | F164: 4 | G164: N/A | H164: 0.36 | I164: 5.44 | J164: N/A | K164: 0 | L164: N/A | M164: 0 | N164: 0 | O164: N/A | P164: 0 | Q164: =of:=[.D164]+[.F164]+[.I164]+[.K164]+[.N164] -> 9.44 | R164: N/A
A165: 282 | B165: Laurel Regional Program | C165: N/A | D165: 1 | E165: N/A | F165: 21.64 | G165: N/A | H165: 1.63 | I165: 21 | J165: N/A | K165: 0 | L165: N/A | M165: 0 | N165: 0 | O165: N/A | P165: 0 | Q165: =of:=[.D165]+[.F165]+[.I165]+[.K165]+[.N165] -> 43.64 | R165: N/A
A166: 283 | B166: Northern Neck Regional Program | C166: N/A | D166: 0 | E166: N/A | F166: 7 | G166: N/A | H166: 1 | I166: 13 | J166: N/A | K166: 0 | L166: N/A | M166: 0 | N166: 0 | O166: N/A | P166: 0 | Q166: =of:=[.D166]+[.F166]+[.I166]+[.K166]+[.N166] -> 20 | R166: N/A
A167: 284 | B167: Northwestern Regional Education Programs | C167: N/A | D167: 2 | E167: N/A | F167: 36 | G167: N/A | H167: 4.95 | I167: 37 | J167: N/A | K167: 1 | L167: N/A | M167: 0 | N167: 0 | O167: N/A | P167: 0 | Q167: =of:=[.D167]+[.F167]+[.I167]+[.K167]+[.N167] -> 76 | R167: N/A
A168: 285 | B168: New Horizons Regional Education Center | C168: N/A | D168: 0 | E168: N/A | F168: 42 | G168: N/A | H168: 0 | I168: 67 | J168: N/A | K168: 0 | L168: N/A | M168: 0 | N168: 0 | O168: N/A | P168: 0 | Q168: =of:=[.D168]+[.F168]+[.I168]+[.K168]+[.N168] -> 109 | R168: N/A
A169: 286 | B169: Piedmont Regional Education | C169: N/A | D169: 1 | E169: N/A | F169: 13 | G169: N/A | H169: 0 | I169: 17 | J169: N/A | K169: 0 | L169: N/A | M169: 0 | N169: 0 | O169: N/A | P169: 0 | Q169: =of:=[.D169]+[.F169]+[.I169]+[.K169]+[.N169] -> 31 | R169: N/A
A170: 287 | B170: Shenandoah Valley Regional | C170: N/A | D170: 0 | E170: N/A | F170: 0 | G170: N/A | H170: 0 | I170: 0 | J170: N/A | K170: 0 | L170: N/A | M170: 0 | N170: 0 | O170: N/A | P170: 0 | Q170: =of:=[.D170]+[.F170]+[.I170]+[.K170]+[.N170] -> 0 | R170: N/A
A171: 288 | B171: Southeastern Coop Education Program | C171: N/A | D171: 25.1 | E171: N/A | F171: 237.28 | G171: N/A | H171: 0 | I171: 142.14 | J171: N/A | K171: 0 | L171: N/A | M171: 0 | N171: 6.74 | O171: N/A | P171: 0 | Q171: =of:=[.D171]+[.F171]+[.I171]+[.K171]+[.N171] -> 411.26 | R171: N/A
A172: 290 | B172: Northern Virginia Regional Special Education Program | C172: N/A | D172: 0 | E172: N/A | F172: 0 | G172: N/A | H172: 0 | I172: 0 | J172: N/A | K172: 0 | L172: N/A | M172: 0 | N172: 0 | O172: N/A | P172: 0 | Q172: =of:=[.D172]+[.F172]+[.I172]+[.K172]+[.N172] -> 0 | R172: N/A
A173: 292 | B173: Henry County/Martinsville Regional Program | C173: N/A | D173: 0 | E173: N/A | F173: 2 | G173: N/A | H173: 0 | I173: 7 | J173: N/A | K173: 0 | L173: N/A | M173: 0 | N173: 0 | O173: N/A | P173: 0 | Q173: =of:=[.D173]+[.F173]+[.I173]+[.K173]+[.N173] -> 9 | R173: N/A
A174: no data | B174: REGIONAL CAREER AND EDUCATION PROGRAMS | C174: no data | D174: no data | E174: no data | F174: no data | G174: no data | H174: no data | I174: no data | J174: no data | K174: no data | L174: no data | M174: no data | N174: no data | O174: no data | P174: no data | Q174: no data | R174: no data
A175: 301 | B175: Charlottesville-Albemarle Technical Education Center | C175: N/A | D175: 2 | E175: N/A | F175: 13.75 | G175: N/A | H175: 0 | I175: 2.2 | J175: N/A | K175: 0 | L175: N/A | M175: 0 | N175: 7 | O175: N/A | P175: 0 | Q175: =of:=[.D175]+[.F175]+[.I175]+[.K175]+[.N175] -> 24.95 | R175: N/A
A176: 302 | B176: Jackson River Technical Center | C176: N/A | D176: 0 | E176: N/A | F176: 0 | G176: N/A | H176: 0 | I176: 0 | J176: N/A | K176: 0 | L176: N/A | M176: 0 | N176: 0 | O176: N/A | P176: 0 | Q176: =of:=[.D176]+[.F176]+[.I176]+[.K176]+[.N176] -> 0 | R176: N/A
A177: 304 | B177: Massanutten Technical Center | C177: N/A | D177: 4 | E177: N/A | F177: 30.5 | G177: N/A | H177: 1.72 | I177: 2.74 | J177: N/A | K177: 1 | L177: N/A | M177: 0 | N177: 11.93 | O177: N/A | P177: 0 | Q177: =of:=[.D177]+[.F177]+[.I177]+[.K177]+[.N177] -> 50.17 | R177: N/A
A178: 306 | B178: Valley Vocational Technical Center | C178: N/A | D178: 2 | E178: N/A | F178: 26.5 | G178: N/A | H178: 1 | I178: 0 | J178: N/A | K178: 0 | L178: N/A | M178: 0 | N178: 8 | O178: N/A | P178: 0 | Q178: =of:=[.D178]+[.F178]+[.I178]+[.K178]+[.N178] -> 36.5 | R178: N/A
A179: 307 | B179: New Horizons Technical Center | C179: N/A | D179: 4 | E179: N/A | F179: 28.6 | G179: N/A | H179: 0 | I179: 0 | J179: N/A | K179: 0 | L179: N/A | M179: 0 | N179: 7 | O179: N/A | P179: 0 | Q179: =of:=[.D179]+[.F179]+[.I179]+[.K179]+[.N179] -> 39.6 | R179: N/A
A180: 309 | B180: Rowanty Vocational Technical Center | C180: N/A | D180: 2 | E180: N/A | F180: 11 | G180: N/A | H180: 2 | I180: 0 | J180: N/A | K180: 0 | L180: N/A | M180: 0 | N180: 0 | O180: N/A | P180: 0 | Q180: =of:=[.D180]+[.F180]+[.I180]+[.K180]+[.N180] -> 13 | R180: N/A
A181: 310 | B181: Northern Neck Technical Center | C181: N/A | D181: 1.5 | E181: N/A | F181: 16 | G181: N/A | H181: 0 | I181: 0 | J181: N/A | K181: 0 | L181: N/A | M181: 0 | N181: 0 | O181: N/A | P181: 0 | Q181: =of:=[.D181]+[.F181]+[.I181]+[.K181]+[.N181] -> 17.5 | R181: N/A
A182: 311 | B182: Amelia-Nottoway Vocational Center | C182: N/A | D182: 1 | E182: N/A | F182: 6 | G182: N/A | H182: 1 | I182: 0 | J182: N/A | K182: 0 | L182: N/A | M182: 0 | N182: 0 | O182: N/A | P182: 0 | Q182: =of:=[.D182]+[.F182]+[.I182]+[.K182]+[.N182] -> 7 | R182: N/A
A183: 313 | B183: Bridging Communities Regional CTE Center | C183: N/A | D183: 0 | E183: N/A | F183: 8 | G183: N/A | H183: 0 | I183: 0 | J183: N/A | K183: 0 | L183: N/A | M183: 0 | N183: 0 | O183: N/A | P183: 0 | Q183: =of:=[.D183]+[.F183]+[.I183]+[.K183]+[.N183] -> 8 | R183: N/A
B184: REGIONAL ALTERNATIVE EDUCATION PROGRAMS
A185: 401 | B185: Lynchburg City Secondary Alternative | C185: N/A | D185: 0 | E185: N/A | F185: 3.5 | G185: N/A | H185: 0 | I185: 1.2 | J185: N/A | K185: 0 | L185: N/A | M185: 0 | N185: 0 | O185: N/A | P185: 0 | Q185: =of:=[.D185]+[.F185]+[.I185]+[.K185]+[.N185] -> 4.7 | R185: N/A
A186: 402 | B186: Enterprise Academy | C186: N/A | D186: 2 | E186: N/A | F186: 12 | G186: N/A | H186: 0 | I186: 3 | J186: N/A | K186: 1 | L186: N/A | M186: 0 | N186: 0 | O186: N/A | P186: 0 | Q186: =of:=[.D186]+[.F186]+[.I186]+[.K186]+[.N186] -> 18 | R186: N/A
A187: 403 | B187: Tidewater Regional Alternative Education Project | C187: N/A | D187: 1.4 | E187: N/A | F187: 15.4 | G187: N/A | H187: 0 | I187: 0 | J187: N/A | K187: 0 | L187: N/A | M187: 0 | N187: 0 | O187: N/A | P187: 0 | Q187: =of:=[.D187]+[.F187]+[.I187]+[.K187]+[.N187] -> 16.8 | R187: N/A
A188: 404 | B188: Regional Alternative Plus Self Project | C188: N/A | D188: 0 | E188: N/A | F188: 1.54 | G188: N/A | H188: 0 | I188: 0 | J188: N/A | K188: 0 | L188: N/A | M188: 0 | N188: 0 | O188: N/A | P188: 0 | Q188: =of:=[.D188]+[.F188]+[.I188]+[.K188]+[.N188] -> 1.54 | R188: N/A
A189: 405 | B189: Transition Support Resource Center | C189: N/A | D189: 0 | E189: N/A | F189: 4.36 | G189: N/A | H189: 0 | I189: 0.41 | J189: N/A | K189: 1 | L189: N/A | M189: 0 | N189: 0 | O189: N/A | P189: 0 | Q189: =of:=[.D189]+[.F189]+[.I189]+[.K189]+[.N189] -> 5.77 | R189: N/A
A190: 406 | B190: Project Return | C190: N/A | D190: 0 | E190: N/A | F190: 4.18 | G190: N/A | H190: 0 | I190: 0 | J190: N/A | K190: 0 | L190: N/A | M190: 0 | N190: 0 | O190: N/A | P190: 0 | Q190: =of:=[.D190]+[.F190]+[.I190]+[.K190]+[.N190] -> 4.18 | R190: N/A
A191: 407 | B191: Behavior Disordered Youth Alt Education Program | C191: N/A | D191: 2 | E191: N/A | F191: 15 | G191: N/A | H191: 1.38 | I191: 3.97 | J191: N/A | K191: 1 | L191: N/A | M191: 0 | N191: 0 | O191: N/A | P191: 0 | Q191: =of:=[.D191]+[.F191]+[.I191]+[.K191]+[.N191] -> 21.97 | R191: N/A
A192: 408 | B192: Petersburg Regional Alternative | C192: N/A | D192: 0.1 | E192: N/A | F192: 1 | G192: N/A | H192: 0 | I192: 1 | J192: N/A | K192: 0.1 | L192: N/A | M192: 0 | N192: 0 | O192: N/A | P192: 0 | Q192: =of:=[.D192]+[.F192]+[.I192]+[.K192]+[.N192] -> 2.2 | R192: N/A
A193: 409 | B193: Pittsylvania County Regional Alternative Program | C193: N/A | D193: 1 | E193: N/A | F193: 3 | G193: N/A | H193: 0.9 | I193: 1 | J193: N/A | K193: 0 | L193: N/A | M193: 0 | N193: 0 | O193: N/A | P193: 0 | Q193: =of:=[.D193]+[.F193]+[.I193]+[.K193]+[.N193] -> 5 | R193: N/A
A194: 410 | B194: Project Return | C194: N/A | D194: 0 | E194: N/A | F194: 0.7 | G194: N/A | H194: 0 | I194: 0 | J194: N/A | K194: 0.4 | L194: N/A | M194: 0 | N194: 0 | O194: N/A | P194: 0 | Q194: =of:=[.D194]+[.F194]+[.I194]+[.K194]+[.N194] -> 1.1 | R194: N/A
A195: 411 | B195: Crossroads Alternative | C195: N/A | D195: 0 | E195: N/A | F195: 5 | G195: N/A | H195: 0 | I195: 1 | J195: N/A | K195: 0 | L195: N/A | M195: 0 | N195: 0 | O195: N/A | P195: 0 | Q195: =of:=[.D195]+[.F195]+[.I195]+[.K195]+[.N195] -> 6 | R195: N/A
A196: 412 | B196: Metro Richmond Alternative Education | C196: N/A | D196: 1.17 | E196: N/A | F196: 3.91 | G196: N/A | H196: 0 | I196: 0 | J196: N/A | K196: 0 | L196: N/A | M196: 0 | N196: 0 | O196: N/A | P196: 0 | Q196: =of:=[.D196]+[.F196]+[.I196]+[.K196]+[.N196] -> 5.08 | R196: N/A
A197: 413 | B197: Stafford County Regional Alternative Education | C197: N/A | D197: 0 | E197: N/A | F197: 6.3 | G197: N/A | H197: 0.27 | I197: 1.5 | J197: N/A | K197: 0 | L197: N/A | M197: 0 | N197: 0 | O197: N/A | P197: 0 | Q197: =of:=[.D197]+[.F197]+[.I197]+[.K197]+[.N197] -> 7.8 | R197: N/A
A198: 414 | B198: Southside L.I.N.K. Project | C198: N/A | D198: 0 | E198: N/A | F198: 6 | G198: N/A | H198: 0.5 | I198: 1 | J198: N/A | K198: 0 | L198: N/A | M198: 0 | N198: 0 | O198: N/A | P198: 0 | Q198: =of:=[.D198]+[.F198]+[.I198]+[.K198]+[.N198] -> 7 | R198: N/A
A199: 415 | B199: King William Regional Alternative Education | C199: N/A | D199: 1 | E199: N/A | F199: 5.5 | G199: N/A | H199: 0 | I199: 0.25 | J199: N/A | K199: 0 | L199: N/A | M199: 0 | N199: 0 | O199: N/A | P199: 0 | Q199: =of:=[.D199]+[.F199]+[.I199]+[.K199]+[.N199] -> 6.75 | R199: N/A
A200: 416 | B200: New Dominion School | C200: N/A | D200: 1.68 | E200: N/A | F200: 11.48 | G200: N/A | H200: 0.32 | I200: 5.41 | J200: N/A | K200: 1.33 | L200: N/A | M200: 0 | N200: 0 | O200: N/A | P200: 0 | Q200: =of:=[.D200]+[.F200]+[.I200]+[.K200]+[.N200] -> 19.9 | R200: N/A
... 22 more rows

Sheet EOY ADM - Serving (hidden)
A1: query, beg sch yr on "Table 17" tab | G1: Already included
G2: do not subtract
A3: BEG_SCH_YR | B3: EDAGENCY_NUM | C3: JKPK | D3: ELEM | E3: SEC | F3: UG | G3: OVERAGE
A4: 2015 | B4: 1 | C4: 175.04678 | D4: 3164.614 | E4: 1921.082 | F4: 0 | G4: 2.44444 | H4: =of:=ROUND(SUM([.C4:.E4]);2) -> 5260.74
A5: 2015 | B5: 2 | C5: 327.01694 | D5: 8079.66373 | E5: 5052.81063 | F5: 0 | G5: 1.98305 | H5: =of:=ROUND(SUM([.C5:.E5]);2) -> 13459.49
A6: 2015 | B6: 3 | C6: 31.05782 | D6: 1233.06354 | E6: 621.53336 | F6: 0 | G6: 0.56977 | H6: =of:=ROUND(SUM([.C6:.E6]);2) -> 1885.65
A7: 2015 | B7: 4 | C7: 47.72989 | D7: 1028.94249 | E7: 679.7586 | F7: 0 | G7: 0 | H7: =of:=ROUND(SUM([.C7:.E7]);2) -> 1756.43
A8: 2015 | B8: 5 | C8: 138.37712 | D8: 2425.21151 | E8: 1574.69715 | F8: 0 | G8: 0 | H8: =of:=ROUND(SUM([.C8:.E8]);2) -> 4138.29
A9: 2015 | B9: 6 | C9: 78.49429 | D9: 1322.00576 | E9: 862.16091 | F9: 0 | G9: 0 | H9: =of:=ROUND(SUM([.C9:.E9]);2) -> 2262.66
A10: 2015 | B10: 7 | C10: 1049.89606 | D10: 16154.5373 | E10: 8242.8374 | F10: 0 | G10: 247.63586 | H10: =of:=ROUND(SUM([.C10:.E10]);2) -> 25447.27
A11: 2015 | B11: 8 | C11: 232.57762 | D11: 6085.50548 | E11: 3592.5055 | F11: 0 | G11: 0 | H11: =of:=ROUND(SUM([.C11:.E11]);2) -> 9910.59
A12: 2015 | B12: 9 | C12: 38.4607 | D12: 300.19102 | E12: 239.29214 | F12: 0 | G12: 0 | H12: =of:=ROUND(SUM([.C12:.E12]);2) -> 577.94
A13: 2015 | B13: 10 | C13: 196.20362 | D13: 5662.94723 | E13: 3872.56853 | F13: 0 | G13: 0 | H13: =of:=ROUND(SUM([.C13:.E13]);2) -> 9731.72
A14: 2015 | B14: 11 | C14: 6.75288 | D14: 482.8046 | E14: 310.04024 | F14: 0 | G14: 0 | H14: =of:=ROUND(SUM([.C14:.E14]);2) -> 799.6
A15: 2015 | B15: 12 | C15: 61.75143 | D15: 2684.90954 | E15: 1948.44344 | F15: 0 | G15: 0 | H15: =of:=ROUND(SUM([.C15:.E15]);2) -> 4695.1
A16: 2015 | B16: 13 | C16: 64.01137 | D16: 1029.2444 | E16: 622.93177 | F16: 0 | G16: 0 | H16: =of:=ROUND(SUM([.C16:.E16]);2) -> 1716.19
A17: 2015 | B17: 14 | C17: 102.61714 | D17: 1737.42287 | E17: 1153.17714 | F17: 0 | G17: 0 | H17: =of:=ROUND(SUM([.C17:.E17]);2) -> 2993.22
A18: 2015 | B18: 15 | C18: 116.85229 | D18: 1251.35219 | E18: 643.11932 | F18: 0 | G18: 0 | H18: =of:=ROUND(SUM([.C18:.E18]);2) -> 2011.32
A19: 2015 | B19: 16 | C19: 244.96166 | D19: 4584.23513 | E19: 3040.63454 | F19: 0 | G19: 0 | H19: =of:=ROUND(SUM([.C19:.E19]);2) -> 7869.83
A20: 2015 | B20: 17 | C20: 131.61046 | D20: 2699.26174 | E20: 1426.20353 | F20: 0 | G20: 0.09884 | H20: =of:=ROUND(SUM([.C20:.E20]);2) -> 4257.08
A21: 2015 | B21: 18 | C21: 136.93333 | D21: 2304.21109 | E21: 1418.74986 | F21: 0 | G21: 0 | H21: =of:=ROUND(SUM([.C21:.E21]);2) -> 3859.89
A22: 2015 | B22: 19 | C22: 36.22465 | D22: 393.29699 | E22: 247.73545 | F22: 0 | G22: 0 | H22: =of:=ROUND(SUM([.C22:.E22]);2) -> 677.26
A23: 2015 | B23: 20 | C23: 96.11561 | D23: 1139.84968 | E23: 656.7052 | F23: 0 | G23: 0 | H23: =of:=ROUND(SUM([.C23:.E23]);2) -> 1892.67
A24: 2015 | B24: 21 | C24: 740.85283 | D24: 35408.62656 | E24: 23141.24336 | F24: 0 | G24: 9.45143 | H24: =of:=ROUND(SUM([.C24:.E24]);2) -> 59290.72
A25: 2015 | B25: 22 | C25: 42.30899 | D25: 1103.65168 | E25: 854.68678 | F25: 0 | G25: 0 | H25: =of:=ROUND(SUM([.C25:.E25]);2) -> 2000.65
A26: 2015 | B26: 23 | C26: 6.49134 | D26: 336.96539 | E26: 258.20816 | F26: 0 | G26: 0 | H26: =of:=ROUND(SUM([.C26:.E26]);2) -> 601.66
A27: 2015 | B27: 24 | C27: 153.57776 | D27: 4882.76658 | E27: 2998.49422 | F27: 0 | G27: 0 | H27: =of:=ROUND(SUM([.C27:.E27]);2) -> 8034.84
A28: 2015 | B28: 25 | C28: 85.96647 | D28: 766.77097 | E28: 496.9106 | F28: 0 | G28: 0 | H28: =of:=ROUND(SUM([.C28:.E28]);2) -> 1349.65
A29: 2015 | B29: 26 | C29: 117.97166 | D29: 1338.4661 | E29: 835.75278 | F29: 0 | G29: 0 | H29: =of:=ROUND(SUM([.C29:.E29]);2) -> 2292.19
A30: 2015 | B30: 27 | C30: 0 | D30: 2683.00005 | E30: 1552.56574 | F30: 0 | G30: 1 | H30: =of:=ROUND(SUM([.C30:.E30]);2) -> 4235.57
A31: 2015 | B31: 28 | C31: 47.54023 | D31: 864.54021 | E31: 420.13791 | F31: 0 | G31: 0 | H31: =of:=ROUND(SUM([.C31:.E31]);2) -> 1332.22
A32: 2015 | B32: 29 | C32: 3780.79662 | D32: 111393.8966 | E32: 70772.16643 | F32: 0 | G32: 417.08992 | H32: =of:=ROUND(SUM([.C32:.E32]);2) -> 185946.86
A33: 2015 | B33: 30 | C33: 165.79071 | D33: 6277.16875 | E33: 4498.62239 | F33: 0 | G33: 1 | H33: =of:=ROUND(SUM([.C33:.E33]);2) -> 10941.58
A34: 2015 | B34: 31 | C34: 73.54444 | D34: 1184.7333 | E34: 804.98881 | F34: 0 | G34: 0 | H34: =of:=ROUND(SUM([.C34:.E34]);2) -> 2063.27
A35: 2015 | B35: 32 | C35: 63.86206 | D35: 2096.91663 | E35: 1277.47126 | F35: 0 | G35: 0 | H35: =of:=ROUND(SUM([.C35:.E35]);2) -> 3438.25
A36: 2015 | B36: 33 | C36: 285.37499 | D36: 4320.92055 | E36: 2597.91478 | F36: 0 | G36: 0 | H36: =of:=ROUND(SUM([.C36:.E36]);2) -> 7204.21
A37: 2015 | B37: 34 | C37: 64.20784 | D37: 7926.19647 | E37: 5091.1123 | F37: 0 | G37: 1.00562 | H37: =of:=ROUND(SUM([.C37:.E37]);2) -> 13081.52
A38: 2015 | B38: 35 | C38: 0 | D38: 1397.79096 | E38: 967.41802 | F38: 0 | G38: 0 | H38: =of:=ROUND(SUM([.C38:.E38]);2) -> 2365.21
A39: 2015 | B39: 36 | C39: 150.37648 | D39: 3221.1766 | E39: 2087.82942 | F39: 0 | G39: 0 | H39: =of:=ROUND(SUM([.C39:.E39]);2) -> 5459.38
A40: 2015 | B40: 37 | C40: 60.53714 | D40: 1484.50867 | E40: 987.28573 | F40: 0 | G40: 0 | H40: =of:=ROUND(SUM([.C40:.E40]);2) -> 2532.33
A41: 2015 | B41: 38 | C41: 45.65276 | D41: 952.19651 | E41: 662.14443 | F41: 0 | G41: 0 | H41: =of:=ROUND(SUM([.C41:.E41]);2) -> 1659.99
A42: 2015 | B42: 39 | C42: 62.24999 | D42: 1926.22727 | E42: 1142.59656 | F42: 0 | G42: 0.12074 | H42: =of:=ROUND(SUM([.C42:.E42]);2) -> 3131.07
A43: 2015 | B43: 40 | C43: 132.3667 | D43: 1529.29999 | E43: 872.75005 | F43: 0 | G43: 0 | H43: =of:=ROUND(SUM([.C43:.E43]);2) -> 2534.42
A44: 2015 | B44: 41 | C44: 282.02313 | D44: 3089.97108 | E44: 1942.5694 | F44: 0 | G44: 0 | H44: =of:=ROUND(SUM([.C44:.E44]);2) -> 5314.56
A45: 2015 | B45: 42 | C45: 315.90226 | D45: 10366.75296 | E45: 7340.07183 | F45: 0 | G45: 0 | H45: =of:=ROUND(SUM([.C45:.E45]);2) -> 18022.73
A46: 2015 | B46: 43 | C46: 1165.63782 | D46: 31010.95907 | E46: 19092.74626 | F46: 0 | G46: 2.9885 | H46: =of:=ROUND(SUM([.C46:.E46]);2) -> 51269.34
A47: 2015 | B47: 44 | C47: 294.02822 | D47: 4317.58185 | E47: 2669.74584 | F47: 0 | G47: 0 | H47: =of:=ROUND(SUM([.C47:.E47]);2) -> 7281.36
A48: 2015 | B48: 45 | C48: 15.63334 | D48: 123.79444 | E48: 69.68889 | F48: 0 | G48: 0 | H48: =of:=ROUND(SUM([.C48:.E48]);2) -> 209.12
A49: 2015 | B49: 46 | C49: 105.76966 | D49: 3217.59535 | E49: 1920.79201 | F49: 0 | G49: 0 | H49: =of:=ROUND(SUM([.C49:.E49]);2) -> 5244.16
A50: 2015 | B50: 48 | C50: 108.71342 | D50: 2629.10044 | E50: 1481.8838 | F50: 0 | G50: 0 | H50: =of:=ROUND(SUM([.C50:.E50]);2) -> 4219.7
A51: 2015 | B51: 49 | C51: 42.00571 | D51: 579.13718 | E51: 206.37792 | F51: 0 | G51: 0 | H51: =of:=ROUND(SUM([.C51:.E51]);2) -> 827.52
A52: 2015 | B52: 50 | C52: 16.36364 | D52: 1365.45454 | E52: 765.35798 | F52: 0 | G52: 0 | H52: =of:=ROUND(SUM([.C52:.E52]);2) -> 2147.18
A53: 2015 | B53: 51 | C53: 86.887 | D53: 643.59887 | E53: 417.76269 | F53: 0 | G53: 0 | H53: =of:=ROUND(SUM([.C53:.E53]);2) -> 1148.25
A54: 2015 | B54: 52 | C54: 219.58038 | D54: 1900.32187 | E54: 1155.87934 | F54: 0 | G54: 0.0115 | H54: =of:=ROUND(SUM([.C54:.E54]);2) -> 3275.78
A55: 2015 | B55: 53 | C55: 1176.25097 | D55: 47280.90851 | E55: 28164.46881 | F55: 0 | G55: 15.90642 | H55: =of:=ROUND(SUM([.C55:.E55]);2) -> 76621.63
A56: 2015 | B56: 54 | C56: 107.05683 | D56: 2873.24433 | E56: 1739.01712 | F56: 0 | G56: 0.97159 | H56: =of:=ROUND(SUM([.C56:.E56]);2) -> 4719.32
A57: 2015 | B57: 55 | C57: 69.92485 | D57: 928.64754 | E57: 533.63009 | F57: 0 | G57: 0 | H57: =of:=ROUND(SUM([.C57:.E57]);2) -> 1532.2
A58: 2015 | B58: 56 | C58: 82.37144 | D58: 1031.00003 | E58: 619.26857 | F58: 0 | G58: 0 | H58: =of:=ROUND(SUM([.C58:.E58]);2) -> 1732.64
A59: 2015 | B59: 57 | C59: 9.87429 | D59: 591.40002 | E59: 483.29713 | F59: 0 | G59: 0 | H59: =of:=ROUND(SUM([.C59:.E59]);2) -> 1084.57
A60: 2015 | B60: 58 | C60: 170.35464 | D60: 2571.70654 | E60: 1727.27238 | F60: 0 | G60: 0 | H60: =of:=ROUND(SUM([.C60:.E60]);2) -> 4469.33
A61: 2015 | B61: 59 | C61: 46.47398 | D61: 733.86704 | E61: 410.48847 | F61: 0 | G61: 0 | H61: =of:=ROUND(SUM([.C61:.E61]);2) -> 1190.83
A62: 2015 | B62: 60 | C62: 260.90401 | D62: 5865.76498 | E62: 3607.11148 | F62: 0 | G62: 0 | H62: =of:=ROUND(SUM([.C62:.E62]);2) -> 9733.78
A63: 2015 | B63: 62 | C63: 42.86113 | D63: 1113.46667 | E63: 779.05 | F63: 0 | G63: 0 | H63: =of:=ROUND(SUM([.C63:.E63]);2) -> 1935.38
A64: 2015 | B64: 63 | C64: 57.44943 | D64: 1816.88771 | E64: 1084.16858 | F64: 0 | G64: 0 | H64: =of:=ROUND(SUM([.C64:.E64]);2) -> 2958.51
A65: 2015 | B65: 65 | C65: 102.90057 | D65: 986.01114 | E65: 565.18787 | F65: 0 | G65: 1 | H65: =of:=ROUND(SUM([.C65:.E65]);2) -> 1654.1
A66: 2015 | B66: 66 | C66: 70.7262 | D66: 733.98811 | E66: 450.0417 | F66: 0 | G66: 0 | H66: =of:=ROUND(SUM([.C66:.E66]);2) -> 1254.76
A67: 2015 | B67: 67 | C67: 152.24011 | D67: 1304.92575 | E67: 734.72003 | F67: 0 | G67: 0 | H67: =of:=ROUND(SUM([.C67:.E67]);2) -> 2191.89
A68: 2015 | B68: 68 | C68: 247.07908 | D68: 2948.59032 | E68: 1769.12435 | F68: 0 | G68: 1.49152 | H68: =of:=ROUND(SUM([.C68:.E68]);2) -> 4964.79
A69: 2015 | B69: 69 | C69: 147.44633 | D69: 1981.04516 | E69: 1296.82627 | F69: 0 | G69: 0 | H69: =of:=ROUND(SUM([.C69:.E69]);2) -> 3425.32
A70: 2015 | B70: 70 | C70: 93.79444 | D70: 1842.33893 | E70: 939.28882 | F70: 0 | G70: 0 | H70: =of:=ROUND(SUM([.C70:.E70]);2) -> 2875.42
A71: 2015 | B71: 71 | C71: 308.80458 | D71: 5273.20103 | E71: 3474.97693 | F71: 0 | G71: 0 | H71: =of:=ROUND(SUM([.C71:.E71]);2) -> 9056.98
A72: 2015 | B72: 72 | C72: 45.73717 | D72: 2438.43002 | E72: 1734.83432 | F72: 0 | G72: 0 | H72: =of:=ROUND(SUM([.C72:.E72]);2) -> 4219
A73: 2015 | B73: 73 | C73: 112.07866 | D73: 1177.85388 | E73: 783.12363 | F73: 0 | G73: 0 | H73: =of:=ROUND(SUM([.C73:.E73]);2) -> 2073.06
A74: 2015 | B74: 74 | C74: 114.79569 | D74: 3860.9114 | E74: 2246.90447 | F74: 0 | G74: 0 | H74: =of:=ROUND(SUM([.C74:.E74]);2) -> 6222.61
A75: 2015 | B75: 75 | C75: 1305.66053 | D75: 52468.59679 | E75: 32278.18347 | F75: 0 | G75: 28.11695 | H75: =of:=ROUND(SUM([.C75:.E75]);2) -> 86052.44
A76: 2015 | B76: 77 | C76: 111.9428 | D76: 2524.31492 | E76: 1660.57225 | F76: 0 | G76: 0 | H76: =of:=ROUND(SUM([.C76:.E76]);2) -> 4296.83
A77: 2015 | B77: 78 | C77: 23.69999 | D77: 504.94443 | E77: 365.28333 | F77: 0 | G77: 0 | H77: =of:=ROUND(SUM([.C77:.E77]);2) -> 893.93
A78: 2015 | B78: 79 | C78: 35.62146 | D78: 777.89268 | E78: 368.42935 | F78: 0 | G78: 0 | H78: =of:=ROUND(SUM([.C78:.E78]);2) -> 1181.94
A79: 2015 | B79: 80 | C79: 292.64662 | D79: 8182.0803 | E79: 5733.27094 | F79: 0 | G79: 0 | H79: =of:=ROUND(SUM([.C79:.E79]);2) -> 14208
A80: 2015 | B80: 81 | C80: 66.01682 | D80: 1552.50562 | E80: 1155.57858 | F80: 0 | G80: 0 | H80: =of:=ROUND(SUM([.C80:.E80]);2) -> 2774.1
A81: 2015 | B81: 82 | C81: 420.29922 | D81: 6779.39548 | E81: 3648.52525 | F81: 0 | G81: 1 | H81: =of:=ROUND(SUM([.C81:.E81]);2) -> 10848.22
A82: 2015 | B82: 83 | C82: 207.63639 | D82: 2310.36936 | E82: 1530.72785 | F82: 0 | G82: 0 | H82: =of:=ROUND(SUM([.C82:.E82]);2) -> 4048.73
A83: 2015 | B83: 84 | C83: 261.93168 | D83: 2175.03414 | E83: 1363.9318 | F83: 0 | G83: 0 | H83: =of:=ROUND(SUM([.C83:.E83]);2) -> 3800.9
A84: 2015 | B84: 85 | C84: 164.93713 | D84: 3512.45156 | E84: 2296.77136 | F84: 0 | G84: 0 | H84: =of:=ROUND(SUM([.C84:.E84]);2) -> 5974.16
A85: 2015 | B85: 86 | C85: 158.29836 | D85: 2690.52908 | E85: 1689.44089 | F85: 0 | G85: 0 | H85: =of:=ROUND(SUM([.C85:.E85]);2) -> 4538.27
A86: 2015 | B86: 87 | C86: 125.93257 | D86: 1645.25852 | E86: 983.71909 | F86: 0 | G86: 0.55056 | H86: =of:=ROUND(SUM([.C86:.E86]);2) -> 2754.91
A87: 2015 | B87: 88 | C87: 389.52015 | D87: 13818.90809 | E87: 9019.09469 | F87: 0 | G87: 1.86782 | H87: =of:=ROUND(SUM([.C87:.E87]);2) -> 23227.52
A88: 2015 | B88: 89 | C88: 453.35168 | D88: 16249.15885 | E88: 10967.91336 | F88: 0 | G88: 3.8019 | H88: =of:=ROUND(SUM([.C88:.E88]);2) -> 27670.42
A89: 2015 | B89: 90 | C89: 46.75421 | D89: 459.53072 | E89: 319.45248 | F89: 0 | G89: 0 | H89: =of:=ROUND(SUM([.C89:.E89]);2) -> 825.74
A90: 2015 | B90: 91 | C90: 36.04571 | D90: 608.22282 | E90: 410.30859 | F90: 0 | G90: 0 | H90: =of:=ROUND(SUM([.C90:.E90]);2) -> 1054.58
A91: 2015 | B91: 92 | C91: 132.68785 | D91: 3594.82381 | E91: 2316.26008 | F91: 0 | G91: 0 | H91: =of:=ROUND(SUM([.C91:.E91]);2) -> 6043.77
A92: 2015 | B92: 93 | C92: 74.61238 | D92: 3204.10392 | E92: 2110.17829 | F92: 0 | G92: 0 | H92: =of:=ROUND(SUM([.C92:.E92]);2) -> 5388.89
A93: 2015 | B93: 94 | C93: 212.36688 | D93: 4283.64966 | E93: 2793.90959 | F93: 0 | G93: 0 | H93: =of:=ROUND(SUM([.C93:.E93]);2) -> 7289.93
A94: 2015 | B94: 95 | C94: 83.20944 | D94: 993.35737 | E94: 512.08648 | F94: 0 | G94: 0 | H94: =of:=ROUND(SUM([.C94:.E94]);2) -> 1588.65
A95: 2015 | B95: 96 | C95: 188.97739 | D95: 3518.23332 | E95: 2257.1053 | F95: 0 | G95: 0.33333 | H95: =of:=ROUND(SUM([.C95:.E95]);2) -> 5964.32
A96: 2015 | B96: 97 | C96: 126.80988 | D96: 2478.3768 | E96: 1563.94437 | F96: 0 | G96: 0 | H96: =of:=ROUND(SUM([.C96:.E96]);2) -> 4169.13
A97: 2015 | B97: 98 | C97: 176.10673 | D97: 7389.70784 | E97: 4871.58856 | F97: 0 | G97: 0 | H97: =of:=ROUND(SUM([.C97:.E97]);2) -> 12437.4
A98: 2015 | B98: 101 | C98: 368.28865 | D98: 9992.46542 | E98: 4558.64148 | F98: 0 | G98: 13.81111 | H98: =of:=ROUND(SUM([.C98:.E98]);2) -> 14919.4
A99: 2015 | B99: 102 | C99: 94.41046 | D99: 1361.86138 | E99: 836.87287 | F99: 0 | G99: 0 | H99: =of:=ROUND(SUM([.C99:.E99]);2) -> 2293.14
A100: 2015 | B100: 103 | C100: 23.86364 | D100: 564.9318 | E100: 401.39204 | F100: 0 | G100: 0 | H100: =of:=ROUND(SUM([.C100:.E100]);2) -> 990.19
A101: 2015 | B101: 104 | C101: 258.2556 | D101: 2685.51148 | E101: 1325.14211 | F101: 0 | G101: 4.06251 | H101: =of:=ROUND(SUM([.C101:.E101]);2) -> 4268.91
A102: 2015 | B102: 106 | C102: 54.09196 | D102: 1663.01148 | E102: 1096.85628 | F102: 0 | G102: 0 | H102: =of:=ROUND(SUM([.C102:.E102]);2) -> 2813.96
A103: 2015 | B103: 107 | C103: 56.72576 | D103: 599.52571 | E103: 323.86855 | F103: 0 | G103: 0 | H103: =of:=ROUND(SUM([.C103:.E103]);2) -> 980.12
A104: 2015 | B104: 108 | C104: 266.43183 | D104: 3720.38092 | E104: 2167.76131 | F104: 0 | G104: 0 | H104: =of:=ROUND(SUM([.C104:.E104]);2) -> 6154.57
A105: 2015 | B105: 109 | C105: 53.9774 | D105: 1489.28777 | E105: 935.09435 | F105: 0 | G105: 0 | H105: =of:=ROUND(SUM([.C105:.E105]);2) -> 2478.36
A106: 2015 | B106: 110 | C106: 186.71427 | D106: 2045.45737 | E106: 1246.58875 | F106: 0 | G106: 2 | H106: =of:=ROUND(SUM([.C106:.E106]);2) -> 3478.76
A107: 2015 | B107: 111 | C107: 63.06548 | D107: 775.18455 | E107: 512.9524 | F107: 0 | G107: 0 | H107: =of:=ROUND(SUM([.C107:.E107]);2) -> 1351.2
A108: 2015 | B108: 112 | C108: 713.65368 | D108: 12136.26773 | E108: 7534.32777 | F108: 0 | G108: 0.03911 | H108: =of:=ROUND(SUM([.C108:.E108]);2) -> 20384.25
A109: 2015 | B109: 113 | C109: 271.61932 | D109: 3541.10793 | E109: 1983.97158 | F109: 0 | G109: 16.53978 | H109: =of:=ROUND(SUM([.C109:.E109]);2) -> 5796.7
A110: 2015 | B110: 114 | C110: 301.19315 | D110: 2610.93189 | E110: 1356.983 | F110: 0 | G110: 2 | H110: =of:=ROUND(SUM([.C110:.E110]);2) -> 4269.11
A111: 2015 | B111: 115 | C111: 378.27011 | D111: 5144.12029 | E111: 2913.49992 | F111: 0 | G111: 0.22989 | H111: =of:=ROUND(SUM([.C111:.E111]);2) -> 8435.89
A112: 2015 | B112: 116 | C112: 130.14607 | D112: 1277.17418 | E112: 751.66289 | F112: 0 | G112: 0 | H112: =of:=ROUND(SUM([.C112:.E112]);2) -> 2158.98
A113: 2015 | B113: 117 | C113: 1607.20002 | D113: 17393.13837 | E113: 9405.03895 | F113: 0 | G113: 3.46112 | H113: =of:=ROUND(SUM([.C113:.E113]);2) -> 28405.38
A114: 2015 | B114: 118 | C114: 2263.40771 | D114: 19652.13359 | E114: 9765.88214 | F114: 0 | G114: 4.32402 | H114: =of:=ROUND(SUM([.C114:.E114]);2) -> 31681.42
A115: 2015 | B115: 119 | C115: 17.41111 | D115: 522.35008 | E115: 289.65556 | F115: 0 | G115: 0 | H115: =of:=ROUND(SUM([.C115:.E115]);2) -> 829.42
A116: 2015 | B116: 120 | C116: 389.51701 | D116: 2548.76621 | E116: 1253.81838 | F116: 0 | G116: 0 | H116: =of:=ROUND(SUM([.C116:.E116]);2) -> 4192.1
A117: 2015 | B117: 121 | C117: 710.17219 | D117: 9119.32185 | E117: 4794.93291 | F117: 0 | G117: 0 | H117: =of:=ROUND(SUM([.C117:.E117]);2) -> 14624.43
A118: 2015 | B118: 122 | C118: 51.46592 | D118: 973.82383 | E118: 615.7329 | F118: 0 | G118: 0 | H118: =of:=ROUND(SUM([.C118:.E118]);2) -> 1641.02
A119: 2015 | B119: 123 | C119: 1934.11427 | D119: 14870.26052 | E119: 6607.05965 | F119: 0 | G119: 6.56896 | H119: =of:=ROUND(SUM([.C119:.E119]);2) -> 23411.43
A120: 2015 | B120: 124 | C120: 642.663 | D120: 8471.72131 | E120: 4190.54976 | F120: 0 | G120: 7.40875 | H120: =of:=ROUND(SUM([.C120:.E120]);2) -> 13304.93
A121: 2015 | B121: 126 | C121: 67.39663 | D121: 1607.50278 | E121: 816.10612 | F121: 0 | G121: 0 | H121: =of:=ROUND(SUM([.C121:.E121]);2) -> 2491.01
A122: 2015 | B122: 127 | C122: 449.191 | D122: 8799.4997 | E122: 4753.94347 | F122: 0 | G122: 0.19101 | H122: =of:=ROUND(SUM([.C122:.E122]);2) -> 14002.63
A123: 2015 | B123: 128 | C123: 671.09502 | D123: 41668.20826 | E123: 25925.55752 | F123: 0 | G123: 0.0929 | H123: =of:=ROUND(SUM([.C123:.E123]);2) -> 68264.86
A124: 2015 | B124: 130 | C124: 167.51151 | D124: 1990.54993 | E124: 924.82221 | F124: 0 | G124: 0 | H124: =of:=ROUND(SUM([.C124:.E124]);2) -> 3082.88
A125: 2015 | B125: 131 | C125: 310.23728 | D125: 6719.88701 | E125: 4436.04536 | F125: 0 | G125: 0.66667 | H125: =of:=ROUND(SUM([.C125:.E125]);2) -> 11466.17
A126: 2015 | B126: 132 | C126: 129.99998 | D126: 2693.74435 | E126: 1520.07219 | F126: 0 | G126: 1 | H126: =of:=ROUND(SUM([.C126:.E126]);2) -> 4343.82
A127: 2015 | B127: 135 | C127: 74.58659 | D127: 695.41338 | E127: 354.60897 | F127: 0 | G127: 0 | H127: =of:=ROUND(SUM([.C127:.E127]);2) -> 1124.61
A128: 2015 | B128: 136 | C128: 793.90506 | D128: 23072.64025 | E128: 15673.98721 | F128: 0 | G128: 0 | H128: =of:=ROUND(SUM([.C128:.E128]);2) -> 39540.53
A129: 2015 | B129: 137 | C129: 3.64444 | D129: 434.8111 | E129: 52.84444 | F129: 0 | G129: 0 | H129: =of:=ROUND(SUM([.C129:.E129]);2) -> 491.3
A130: 2015 | B130: 139 | C130: 47.20902 | D130: 2252.40109 | E130: 1462.77397 | F130: 0 | G130: 0 | H130: =of:=ROUND(SUM([.C130:.E130]);2) -> 3762.38
A131: 2015 | B131: 142 | C131: 8.28889 | D131: 1181.6944 | E131: 828.53892 | F131: 0 | G131: 0 | H131: =of:=ROUND(SUM([.C131:.E131]);2) -> 2018.52
A132: 2015 | B132: 143 | C132: 232.41622 | D132: 4630.22584 | E132: 2588.82664 | F132: 0 | G132: 3.56647 | H132: =of:=ROUND(SUM([.C132:.E132]);2) -> 7451.47
A133: 2015 | B133: 144 | C133: 51.883 | D133: 2093.91759 | E133: 1235.73684 | F133: 0 | G133: 3 | H133: =of:=ROUND(SUM([.C133:.E133]);2) -> 3381.54
A134: 2015 | B134: 202 | C134: 31.69822 | D134: 342.39056 | E134: 190.94082 | F134: 0 | G134: 0 | H134: =of:=ROUND(SUM([.C134:.E134]);2) -> 565.03
A135: 2015 | B135: 207 | C135: 7.55555 | D135: 431.42783 | E135: 327.42778 | F135: 0 | G135: 0 | H135: =of:=ROUND(SUM([.C135:.E135]);2) -> 766.41
H136: =of:=SUM([.H4:.H135]) -> 1266223.96

Sheet EOY ADM - responsible (hidden)
A1: NOT USED(?) AS OF 1/26/10
A2: From TOAD - Production: School Schema - 'ASRFIN_TABLE_17_ADM_VW' | H2: Already included
H3: do not subtract
A4: EDAGENCY_NUM | B4: NAME | C4: BEG_SCH_YR | D4: ELEM | E4: SEC | F4: JKPK | G4: UG | H4: OVERAGE | J4: Total
A5: 1 | B5: ACCOMACK CO PBLC SCHS | C5: 2005 | D5: 3055.33 | E5: 2050.45 | F5: 160.42 | G5: 0 | H5: 1.3 | J5: =of:=SUM([.D5:.F5]) -> 5266.2
A6: 2 | B6: ALBEMARLE CO PBLC SCHS | C6: 2005 | D6: 7418.37 | E6: 4870.52 | F6: 217.66 | G6: 0 | H6: 0 | J6: =of:=SUM([.D6:.F6]) -> 12506.55
A7: 3 | B7: ALLEGHANY CO PBLC SCHS | C7: 2005 | D7: 1899.49 | E7: 1019.83 | F7: 0 | G7: 0 | H7: 0 | J7: =of:=SUM([.D7:.F7]) -> 2919.32
A8: 4 | B8: AMELIA CO PBLC SCHS | C8: 2005 | D8: 1068.88 | E8: 680.82 | F8: 0 | G8: 0 | H8: 0 | J8: =of:=SUM([.D8:.F8]) -> 1749.7
A9: 5 | B9: AMHERST CO PBLC SCHS | C9: 2005 | D9: 2795.58 | E9: 1817.95 | F9: 116.33 | G9: 0 | H9: 0 | J9: =of:=SUM([.D9:.F9]) -> 4729.86
A10: 6 | B10: APPOMATTOX CO PBLC SCHS | C10: 2005 | D10: 1403.22 | E10: 852.2 | F10: 52.89 | G10: 0 | H10: 0 | J10: =of:=SUM([.D10:.F10]) -> 2308.31
A11: 7 | B11: ARLINGTON CO PBLC SCHS | C11: 2005 | D11: 10879.35 | E11: 6434.98 | F11: 769.63 | G11: 0 | H11: 0 | J11: =of:=SUM([.D11:.F11]) -> 18083.96
A12: 8 | B12: AUGUSTA CO PBLC SCHS | C12: 2005 | D12: 6411.69 | E12: 3702.78 | F12: 192.09 | G12: 0 | H12: 0 | J12: =of:=SUM([.D12:.F12]) -> 10306.56
A13: 9 | B13: BATH CO PBLC SCHS | C13: 2005 | D13: 445.49 | E13: 332.51 | F13: 0 | G13: 0 | H13: 0 | J13: =of:=SUM([.D13:.F13]) -> 778
A14: 10 | B14: BEDFORD CO PBLC SCHS | C14: 2005 | D14: 6509.42 | E14: 4327.29 | F14: 199.09 | G14: 0 | H14: 0.01 | J14: =of:=SUM([.D14:.F14]) -> 11035.8
A15: 11 | B15: BLAND CO PBLC SCHS | C15: 2005 | D15: 526.61 | E15: 357.13 | F15: 0 | G15: 0 | H15: 0 | J15: =of:=SUM([.D15:.F15]) -> 883.74
A16: 12 | B16: BOTETOURT CO PBLC SCHS | C16: 2005 | D16: 2933.56 | E16: 1851.28 | F16: 29.42 | G16: 0 | H16: 0 | J16: =of:=SUM([.D16:.F16]) -> 4814.26
A17: 13 | B17: BRUNSWICK CO PBLC SCHS | C17: 2005 | D17: 1406.73 | E17: 763.76 | F17: 65.87 | G17: 0 | H17: 0 | J17: =of:=SUM([.D17:.F17]) -> 2236.36
A18: 14 | B18: BUCHANAN CO PBLC SCHS | C18: 2005 | D18: 2119.43 | E18: 1368.36 | F18: 0 | G18: 0 | H18: 0 | J18: =of:=SUM([.D18:.F18]) -> 3487.79
A19: 15 | B19: BUCKINGHAM CO PBLC SCHS | C19: 2005 | D19: 1226.07 | E19: 855.31 | F19: 66.02 | G19: 0 | H19: 0 | J19: =of:=SUM([.D19:.F19]) -> 2147.4
A20: 16 | B20: CAMPBELL CO PBLC SCHS | C20: 2005 | D20: 5252.21 | E20: 3392.47 | F20: 201.71 | G20: 0 | H20: 0 | J20: =of:=SUM([.D20:.F20]) -> 8846.39
A21: 17 | B21: CAROLINE CO PBLC SCHS | C21: 2005 | D21: 2455.08 | E21: 1436.71 | F21: 153.23 | G21: 0 | H21: 0 | J21: =of:=SUM([.D21:.F21]) -> 4045.02
A22: 18 | B22: CARROLL CO PBLC SCHS | C22: 2005 | D22: 2470.96 | E22: 1495.99 | F22: 0 | G22: 0 | H22: 0 | J22: =of:=SUM([.D22:.F22]) -> 3966.95
A23: 19 | B23: CHARLES CITY CO PBLC SCHS | C23: 2005 | D23: 539.99 | E23: 317.28 | F23: 0 | G23: 0 | H23: 0 | J23: =of:=SUM([.D23:.F23]) -> 857.27
A24: 20 | B24: CHARLOTTE CO PBLC SCHS | C24: 2005 | D24: 1330.31 | E24: 865.78 | F24: 83.57 | G24: 0 | H24: 0 | J24: =of:=SUM([.D24:.F24]) -> 2279.66
A25: 21 | B25: CHESTERFIELD CO PBLC SCHS | C25: 2005 | D25: 34226.77 | E25: 22083.09 | F25: 611.57 | G25: 0 | H25: 1.94 | J25: =of:=SUM([.D25:.F25]) -> 56921.43
A26: 22 | B26: CLARKE CO PBLC SCHS | C26: 2005 | D26: 1225.8 | E26: 910.3 | F26: 52.72 | G26: 0 | H26: 0 | J26: =of:=SUM([.D26:.F26]) -> 2188.82
A27: 23 | B27: CRAIG CO PBLC SCHS | C27: 2005 | D27: 435.61 | E27: 273.68 | F27: 8.37 | G27: 0 | H27: 0 | J27: =of:=SUM([.D27:.F27]) -> 717.66
A28: 24 | B28: CULPEPER CO PBLC SCHS | C28: 2005 | D28: 4320.25 | E28: 2555.61 | F28: 118.9 | G28: 0 | H28: 0.51 | J28: =of:=SUM([.D28:.F28]) -> 6994.76
A29: 25 | B29: CUMBERLAND CO PBLC SCHS | C29: 2005 | D29: 829.25 | E29: 546.96 | F29: 102.31 | G29: 0 | H29: 0 | J29: =of:=SUM([.D29:.F29]) -> 1478.52
A30: 26 | B30: DICKENSON CO PBLC SCHS | C30: 2005 | D30: 1487.97 | E30: 997.04 | F30: 0 | G30: 0 | H30: 0 | J30: =of:=SUM([.D30:.F30]) -> 2485.01
A31: 27 | B31: DINWIDDIE CO PBLC SCHS | C31: 2005 | D31: 2713.22 | E31: 1799.57 | F31: 0 | G31: 0 | H31: 0 | J31: =of:=SUM([.D31:.F31]) -> 4512.79
A32: 28 | B32: ESSEX CO PBLC SCHS | C32: 2005 | D32: 923.59 | E32: 566.4 | F32: 37.79 | G32: 0 | H32: 0 | J32: =of:=SUM([.D32:.F32]) -> 1527.78
A33: 29 | B33: FAIRFAX CO PBLC SCHS | C33: 2005 | D33: 95841.2 | E33: 64581.53 | F33: 2648 | G33: 0 | H33: 1.98 | J33: =of:=SUM([.D33:.F33]) -> 163070.73
A34: 30 | B34: FAUQUIER CO PBLC SCHS | C34: 2005 | D34: 6524.15 | E34: 4316.09 | F34: 86.87 | G34: 0 | H34: 0 | J34: =of:=SUM([.D34:.F34]) -> 10927.11
A35: 31 | B35: FLOYD CO PBLC SCHS | C35: 2005 | D35: 1288.39 | E35: 786.3 | F35: 0 | G35: 0 | H35: 0 | J35: =of:=SUM([.D35:.F35]) -> 2074.69
A36: 32 | B36: FLUVANNA CO PBLC SCHS | C36: 2005 | D36: 2264 | E36: 1380 | F36: 100 | G36: 0 | H36: 1 | J36: =of:=SUM([.D36:.F36]) -> 3744
A37: 33 | B37: FRANKLIN CO PBLC SCHS | C37: 2005 | D37: 4378.68 | E37: 2774.97 | F37: 216.41 | G37: 0 | H37: 0 | J37: =of:=SUM([.D37:.F37]) -> 7370.06
A38: 34 | B38: FREDERICK CO PBLC SCHS | C38: 2005 | D38: 7401.52 | E38: 4687.33 | F38: 0 | G38: 0 | H38: 0 | J38: =of:=SUM([.D38:.F38]) -> 12088.85
A39: 35 | B39: GILES CO PBLC SCHS | C39: 2005 | D39: 1559.68 | E39: 1036.37 | F39: 0 | G39: 0 | H39: 0 | J39: =of:=SUM([.D39:.F39]) -> 2596.05
A40: 36 | B40: GLOUCESTER CO PBLC SCHS | C40: 2005 | D40: 3570.52 | E40: 2417.87 | F40: 59.22 | G40: 0 | H40: 0.39 | J40: =of:=SUM([.D40:.F40]) -> 6047.61
A41: 37 | B41: GOOCHLAND CO PBLC SCHS | C41: 2005 | D41: 1317.62 | E41: 918.48 | F41: 0 | G41: 0 | H41: 0 | J41: =of:=SUM([.D41:.F41]) -> 2236.1
A42: 38 | B42: GRAYSON CO PBLC SCHS | C42: 2005 | D42: 1304.78 | E42: 842.24 | F42: 0 | G42: 0 | H42: 0 | J42: =of:=SUM([.D42:.F42]) -> 2147.02
A43: 39 | B43: GREENE CO PBLC SCHS | C43: 2005 | D43: 1683.93 | E43: 1020.8 | F43: 53.74 | G43: 0 | H43: 0 | J43: =of:=SUM([.D43:.F43]) -> 2758.47
A44: 40 | B44: GREENSVILLE CO PBLC SCHS | C44: 2005 | D44: 1562.28 | E44: 995.5 | F44: 0 | G44: 0 | H44: 0 | J44: =of:=SUM([.D44:.F44]) -> 2557.78
A45: 41 | B45: HALIFAX CO PBLC SCHS | C45: 2005 | D45: 3626.06 | E45: 2225.79 | F45: 0 | G45: 0 | H45: 0 | J45: =of:=SUM([.D45:.F45]) -> 5851.85
A46: 42 | B46: HANOVER CO PBLC SCHS | C46: 2005 | D46: 11231.89 | E46: 7233.52 | F46: 310.26 | G46: 0 | H46: 0 | J46: =of:=SUM([.D46:.F46]) -> 18775.67
A47: 43 | B47: HENRICO CO PBLC SCHS | C47: 2005 | D47: 28704.16 | E47: 18023.68 | F47: 0 | G47: 0 | H47: 5.86 | J47: =of:=SUM([.D47:.F47]) -> 46727.84
A48: 44 | B48: HENRY CO PBLC SCHS | C48: 2005 | D48: 4578.82 | E48: 3054.5 | F48: 226.1 | G48: 0 | H48: 0 | J48: =of:=SUM([.D48:.F48]) -> 7859.42
A49: 45 | B49: HIGHLAND CO PBLC SCHS | C49: 2005 | D49: 154.77 | E49: 142.37 | F49: 15.16 | G49: 0 | H49: 0 | J49: =of:=SUM([.D49:.F49]) -> 312.3
A50: 46 | B50: ISLE OF WIGHT CO PBLC SCHS | C50: 2005 | D50: 3113.4 | E50: 2026.65 | F50: 74.09 | G50: 0 | H50: 0 | J50: =of:=SUM([.D50:.F50]) -> 5214.14
A51: 48 | B51: KING GEO CO PBLC SCHS | C51: 2005 | D51: 2174.23 | E51: 1361.98 | F51: 33.85 | G51: 0 | H51: 0 | J51: =of:=SUM([.D51:.F51]) -> 3570.06
A52: 49 | B52: KING AND QUEEN CO PBLC SCHS | C52: 2005 | D52: 513.04 | E52: 275.85 | F52: 0 | G52: 0 | H52: 0 | J52: =of:=SUM([.D52:.F52]) -> 788.89
A53: 50 | B53: KING WILLIAM CO PBLC SCHS | C53: 2005 | D53: 1252.64 | E53: 747.59 | F53: 0 | G53: 0 | H53: 0 | J53: =of:=SUM([.D53:.F53]) -> 2000.23
A54: 51 | B54: LANCASTER CO PBLC SCHS | C54: 2005 | D54: 758.42 | E54: 584.14 | F54: 61.41 | G54: 0 | H54: 0 | J54: =of:=SUM([.D54:.F54]) -> 1403.97
A55: 52 | B55: LEE CO PBLC SCHS | C55: 2005 | D55: 2176.3 | E55: 1370.89 | F55: 35.81 | G55: 0 | H55: 0 | J55: =of:=SUM([.D55:.F55]) -> 3583
A56: 53 | B56: LOUDOUN CO PBLC SCHS | C56: 2005 | D56: 30568.9 | E56: 16098.78 | F56: 700.46 | G56: 0 | H56: 0.87 | J56: =of:=SUM([.D56:.F56]) -> 47368.14
A57: 54 | B57: LOUISA CO PBLC SCHS | C57: 2005 | D57: 2665.12 | E57: 1635.61 | F57: 71.78 | G57: 0 | H57: 0 | J57: =of:=SUM([.D57:.F57]) -> 4372.51
A58: 55 | B58: LUNENBURG CO PBLC SCHS | C58: 2005 | D58: 996.99 | E58: 695.93 | F58: 67.3 | G58: 0 | H58: 0 | J58: =of:=SUM([.D58:.F58]) -> 1760.22
A59: 56 | B59: MADISON CO PBLC SCHS | C59: 2005 | D59: 1055.63 | E59: 796.01 | F59: 0 | G59: 0 | H59: 0 | J59: =of:=SUM([.D59:.F59]) -> 1851.64
A60: 57 | B60: MATHEWS CO PBLC SCHS | C60: 2005 | D60: 704 | E60: 539.12 | F60: 0 | G60: 0 | H60: 0 | J60: =of:=SUM([.D60:.F60]) -> 1243.12
A61: 58 | B61: MECKLENBURG CO PBLC SCHS | C61: 2005 | D61: 2978.54 | E61: 1841.36 | F61: 156.07 | G61: 0 | H61: 1 | J61: =of:=SUM([.D61:.F61]) -> 4975.97
A62: 59 | B62: MIDDLESEX CO PBLC SCHS | C62: 2005 | D62: 713.83 | E62: 551.08 | F62: 0 | G62: 0 | H62: 0 | J62: =of:=SUM([.D62:.F62]) -> 1264.91
A63: 60 | B63: MONTGOMERY CO PBLC SCHS | C63: 2005 | D63: 5737.92 | E63: 3643.33 | F63: 155.19 | G63: 0 | H63: 0.6 | J63: =of:=SUM([.D63:.F63]) -> 9536.44
A64: 62 | B64: NELSON CO PBLC SCHS | C64: 2005 | D64: 1197.68 | E64: 734.88 | F64: 28.08 | G64: 0 | H64: 0 | J64: =of:=SUM([.D64:.F64]) -> 1960.64
A65: 63 | B65: NEW KENT CO PBLC SCHS | C65: 2005 | D65: 1545.6 | E65: 1028.31 | F65: 49.66 | G65: 0 | H65: 0 | J65: =of:=SUM([.D65:.F65]) -> 2623.57
A66: 65 | B66: NORTHAMPTON CO PBLC SCHS | C66: 2005 | D66: 1123.65 | E66: 756.71 | F66: 45.2 | G66: 0 | H66: 0 | J66: =of:=SUM([.D66:.F66]) -> 1925.56
A67: 66 | B67: NORTHUMBERLAND CO PBLC SCHS | C67: 2005 | D67: 877.95 | E67: 554.82 | F67: 61.47 | G67: 0 | H67: 0 | J67: =of:=SUM([.D67:.F67]) -> 1494.24
A68: 67 | B68: NOTTOWAY CO PBLC SCHS | C68: 2005 | D68: 1367.74 | E68: 886.64 | F68: 94.57 | G68: 0 | H68: 0 | J68: =of:=SUM([.D68:.F68]) -> 2348.95
A69: 68 | B69: ORANGE CO PBLC SCHS | C69: 2005 | D69: 2880.86 | E69: 1702.43 | F69: 0 | G69: 0 | H69: 0 | J69: =of:=SUM([.D69:.F69]) -> 4583.29
A70: 69 | B70: PAGE CO PBLC SCHS | C70: 2005 | D70: 2203.73 | E70: 1330.91 | F70: 109.67 | G70: 0 | H70: 0.46 | J70: =of:=SUM([.D70:.F70]) -> 3644.31
A71: 70 | B71: PATRICK CO PBLC SCHS | C71: 2005 | D71: 1594.01 | E71: 956.96 | F71: 0 | G71: 0 | H71: 0 | J71: =of:=SUM([.D71:.F71]) -> 2550.97
A72: 71 | B72: PITTSYLVANIA CO PBLC SCHS | C72: 2005 | D72: 5476.91 | E72: 3471.92 | F72: 162.89 | G72: 0 | H72: 0 | J72: =of:=SUM([.D72:.F72]) -> 9111.72
A73: 72 | B73: POWHATAN CO PBLC SCHS | C73: 2005 | D73: 2619.79 | E73: 1618.45 | F73: 100.25 | G73: 0 | H73: 0 | J73: =of:=SUM([.D73:.F73]) -> 4338.49
A74: 73 | B74: PRINCE EDWARD CO PBLC SCHS | C74: 2005 | D74: 1508.8 | E74: 1068.22 | F74: 126.27 | G74: 0 | H74: 0 | J74: =of:=SUM([.D74:.F74]) -> 2703.29
A75: 74 | B75: PRINCE GEORGE CO PBLC SCHS | C75: 2005 | D75: 3563.4 | E75: 2367.45 | F75: 82.01 | G75: 0 | H75: 0 | J75: =of:=SUM([.D75:.F75]) -> 6012.86
A76: 75 | B76: PRINCE WM CO PBLC SCHS | C76: 2005 | D76: 41245.62 | E76: 25259.43 | F76: 820.74 | G76: 0 | H76: 0 | J76: =of:=SUM([.D76:.F76]) -> 67325.79
A77: 77 | B77: PULASKI CO PBLC SCHS | C77: 2005 | D77: 2979.76 | E77: 1807.25 | F77: 95.37 | G77: 0 | H77: 0 | J77: =of:=SUM([.D77:.F77]) -> 4882.38
A78: 78 | B78: RAPPAHANNOCK CO PBLC SCHS | C78: 2005 | D78: 560.84 | E78: 446.99 | F78: 0 | G78: 0 | H78: 0 | J78: =of:=SUM([.D78:.F78]) -> 1007.83
A79: 79 | B79: RICHMOND CO PBLC SCHS | C79: 2005 | D79: 715.67 | E79: 472.31 | F79: 0 | G79: 0 | H79: 0 | J79: =of:=SUM([.D79:.F79]) -> 1187.98
A80: 80 | B80: ROANOKE CO PBLC SCHS | C80: 2005 | D80: 8737.47 | E80: 5978.58 | F80: 0 | G80: 0 | H80: 0 | J80: =of:=SUM([.D80:.F80]) -> 14716.05
A81: 81 | B81: ROCKBRIDGE CO PBLC SCHS | C81: 2005 | D81: 1606.65 | E81: 1282.83 | F81: 0.53 | G81: 0 | H81: 0 | J81: =of:=SUM([.D81:.F81]) -> 2890.01
A82: 82 | B82: ROCKINGHAM CO PBLC SCHS | C82: 2005 | D82: 6817.76 | E82: 4311.72 | F82: 350.89 | G82: 0 | H82: 0 | J82: =of:=SUM([.D82:.F82]) -> 11480.37
A83: 83 | B83: RUSSELL CO PBLC SCHS | C83: 2005 | D83: 2492.06 | E83: 1580.98 | F83: 183.22 | G83: 0 | H83: 0.37 | J83: =of:=SUM([.D83:.F83]) -> 4256.26
A84: 84 | B84: SCOTT CO PBLC SCHS | C84: 2005 | D84: 2348.68 | E84: 1398.81 | F84: 0 | G84: 0 | H84: 0 | J84: =of:=SUM([.D84:.F84]) -> 3747.49
A85: 85 | B85: SHENANDOAH CO PBLC SCHS | C85: 2005 | D85: 3646.89 | E85: 2308.65 | F85: 120.99 | G85: 0 | H85: 0 | J85: =of:=SUM([.D85:.F85]) -> 6076.53
A86: 86 | B86: SMYTH CO PBLC SCHS | C86: 2005 | D86: 3049.03 | E86: 1933.27 | F86: 0 | G86: 0 | H86: 0 | J86: =of:=SUM([.D86:.F86]) -> 4982.3
A87: 87 | B87: SOUTHAMPTON CO PBLC SCHS | C87: 2005 | D87: 1621.48 | E87: 1161.38 | F87: 52.34 | G87: 0 | H87: 0 | J87: =of:=SUM([.D87:.F87]) -> 2835.2
A88: 88 | B88: SPOTSYLVANIA CO PBLC SCHS | C88: 2005 | D88: 14295.64 | E88: 8986.34 | F88: 315.5 | G88: 0 | H88: 1.28 | J88: =of:=SUM([.D88:.F88]) -> 23597.48
A89: 89 | B89: STAFFORD CO PBLC SCHS | C89: 2005 | D89: 15509.69 | E89: 10341.23 | F89: 208.97 | G89: 0 | H89: 0 | J89: =of:=SUM([.D89:.F89]) -> 26059.89
A90: 90 | B90: SURRY CO PBLC SCHS | C90: 2005 | D90: 618.48 | E90: 393.94 | F90: 60.05 | G90: 0 | H90: 0 | J90: =of:=SUM([.D90:.F90]) -> 1072.47
A91: 91 | B91: SUSSEX CO PBLC SCHS | C91: 2005 | D91: 795.66 | E91: 583.24 | F91: 0 | G91: 0 | H91: 0 | J91: =of:=SUM([.D91:.F91]) -> 1378.9
A92: 92 | B92: TAZEWELL CO PBLC SCHS | C92: 2005 | D92: 4239.23 | E92: 2565.98 | F92: 0 | G92: 0 | H92: 0 | J92: =of:=SUM([.D92:.F92]) -> 6805.21
A93: 93 | B93: WARREN CO PBLC SCHS | C93: 2005 | D93: 3146.84 | E93: 2123.36 | F93: 0 | G93: 0 | H93: 0 | J93: =of:=SUM([.D93:.F93]) -> 5270.2
A94: 94 | B94: WASHINGTON CO PBLC SCHS | C94: 2005 | D94: 4251.06 | E94: 2976.09 | F94: 185.25 | G94: 0 | H94: 0 | J94: =of:=SUM([.D94:.F94]) -> 7412.4
A95: 95 | B95: WESTMORELAND CO PBLC SCHS | C95: 2005 | D95: 1031.8 | E95: 740.56 | F95: 69.01 | G95: 0 | H95: 0 | J95: =of:=SUM([.D95:.F95]) -> 1841.37
A96: 96 | B96: WISE CO PBLC SCHS | C96: 2005 | D96: 4001.1 | E96: 2622.03 | F96: 0 | G96: 0 | H96: 0 | J96: =of:=SUM([.D96:.F96]) -> 6623.13
A97: 97 | B97: WYTHE CO PBLC SCHS | C97: 2005 | D97: 2564.33 | E97: 1571.79 | F97: 0 | G97: 0 | H97: 0 | J97: =of:=SUM([.D97:.F97]) -> 4136.12
A98: 98 | B98: YORK CO PBLC SCHS | C98: 2005 | D98: 7311.88 | E98: 5320.22 | F98: 0 | G98: 0 | H98: 1.29 | J98: =of:=SUM([.D98:.F98]) -> 12632.1
A99: 101 | B99: ALEXANDRIA CITY PBLC SCHS | C99: 2005 | D99: 6701.1 | E99: 3442.72 | F99: 192.99 | G99: 0 | H99: 0 | J99: =of:=SUM([.D99:.F99]) -> 10336.81
A100: 102 | B100: BRISTOL CITY PBLC SCHS | C100: 2005 | D100: 1410.05 | E100: 887.17 | F100: 77.9 | G100: 0 | H100: 0 | J100: =of:=SUM([.D100:.F100]) -> 2375.12
A101: 103 | B101: BUENA VISTA CITY PBLC SCHS | C101: 2005 | D101: 722.16 | E101: 399.99 | F101: 0 | G101: 0 | H101: 0 | J101: =of:=SUM([.D101:.F101]) -> 1122.15
A102: 104 | B102: CHARLOTTESVILLE CTY PBLC SCHS | C102: 2005 | D102: 2478.82 | E102: 1619.74 | F102: 0 | G102: 0 | H102: 0 | J102: =of:=SUM([.D102:.F102]) -> 4098.56
A103: 106 | B103: COLNL HEIGHTS CITY PBLC SCHS | C103: 2005 | D103: 1755.81 | E103: 1122.2 | F103: 0 | G103: 0 | H103: 0 | J103: =of:=SUM([.D103:.F103]) -> 2878.01
A104: 107 | B104: COVINGTON CITY PBLC SCHS | C104: 2005 | D104: 479.28 | E104: 334.57 | F104: 0 | G104: 0 | H104: 0 | J104: =of:=SUM([.D104:.F104]) -> 813.85
A105: 108 | B105: DANVILLE CITY PBLC SCHS | C105: 2005 | D105: 4104.92 | E105: 2612.35 | F105: 213.4 | G105: 0 | H105: 0.48 | J105: =of:=SUM([.D105:.F105]) -> 6930.67
A106: 109 | B106: FALLS CHURCH CITY PBLC SCHS | C106: 2005 | D106: 1035.87 | E106: 804.2 | F106: 17.59 | G106: 0 | H106: 0 | J106: =of:=SUM([.D106:.F106]) -> 1857.66
A107: 110 | B107: FREDERICKSBRG CITY PBLC SCHS | C107: 2005 | D107: 1484.2 | E107: 960.71 | F107: 19.38 | G107: 0 | H107: 0 | J107: =of:=SUM([.D107:.F107]) -> 2464.29
A108: 111 | B108: GALAX CITY PBLC SCHS | C108: 2005 | D108: 879.22 | E108: 426.28 | F108: 0 | G108: 0 | H108: 0 | J108: =of:=SUM([.D108:.F108]) -> 1305.5
A109: 112 | B109: HAMPTON CITY PBLC SCHS | C109: 2005 | D109: 13470.58 | E109: 8733.72 | F109: 222.39 | G109: 0 | H109: 0.87 | J109: =of:=SUM([.D109:.F109]) -> 22426.69
A110: 113 | B110: HARRISONBURG CITY PBLC SCHS | C110: 2005 | D110: 2658.53 | E110: 1618.73 | F110: 0 | G110: 0 | H110: 0.08 | J110: =of:=SUM([.D110:.F110]) -> 4277.26
A111: 114 | B111: HOPEWELL CITY PBLC SCHS | C111: 2005 | D111: 2529.54 | E111: 1334.41 | F111: 53.41 | G111: 0 | H111: 0.2 | J111: =of:=SUM([.D111:.F111]) -> 3917.36
A112: 115 | B112: LYNCHBURG CITY PBLC SCHS | C112: 2005 | D112: 5159.85 | E112: 3320.9 | F112: 204.08 | G112: 0 | H112: 1 | J112: =of:=SUM([.D112:.F112]) -> 8684.83
A113: 116 | B113: MARTINSVILLE CITY PBLC SCHS | C113: 2005 | D113: 1478.17 | E113: 1038.12 | F113: 56.88 | G113: 0 | H113: 0 | J113: =of:=SUM([.D113:.F113]) -> 2573.17
A114: 117 | B114: NEWPORT NEWS CITY PBLC SCHS | C114: 2005 | D114: 18702.43 | E114: 11600.51 | F114: 0 | G114: 0 | H114: 2.17 | J114: =of:=SUM([.D114:.F114]) -> 30302.94
A115: 118 | B115: NORFOLK CITY PBLC SCHS | C115: 2005 | D115: 22228.49 | E115: 10981.98 | F115: 2005.19 | G115: 0 | H115: 0 | J115: =of:=SUM([.D115:.F115]) -> 35215.66
A116: 119 | B116: NORTON CITY PBLC SCHS | C116: 2005 | D116: 446.23 | E116: 267.97 | F116: 15.52 | G116: 0 | H116: 0 | J116: =of:=SUM([.D116:.F116]) -> 729.72
A117: 120 | B117: PETERSBURG CITY PBLC SCHS | C117: 2005 | D117: 2987.28 | E117: 1784.19 | F117: 181.02 | G117: 0 | H117: 0 | J117: =of:=SUM([.D117:.F117]) -> 4952.49
A118: 121 | B118: PORTSMOUTH CITY PBLC SCHS | C118: 2005 | D118: 9705.68 | E118: 5444.86 | F118: 290.02 | G118: 0 | H118: 1.01 | J118: =of:=SUM([.D118:.F118]) -> 15440.56
A119: 122 | B119: RADFORD CITY PBLC SCHS | C119: 2005 | D119: 938.59 | E119: 589.26 | F119: 17.32 | G119: 0 | H119: 0 | J119: =of:=SUM([.D119:.F119]) -> 1545.17
A120: 123 | B120: RICHMOND CITY PBLC SCHS | C120: 2005 | D120: 15241.44 | E120: 7677.21 | F120: 1250.51 | G120: 0 | H120: 2.36 | J120: =of:=SUM([.D120:.F120]) -> 24169.16
A121: 124 | B121: ROANOKE CITY PBLC SCHS | C121: 2005 | D121: 8197.14 | E121: 4201.77 | F121: 689.37 | G121: 0 | H121: 0.62 | J121: =of:=SUM([.D121:.F121]) -> 13088.28
A122: 126 | B122: STAUNTON CITY PBLC SCHS | C122: 2005 | D122: 1583.82 | E122: 1037.69 | F122: 0 | G122: 0 | H122: 0 | J122: =of:=SUM([.D122:.F122]) -> 2621.51
A123: 127 | B123: SUFFOLK CITY PBLC SCHS | C123: 2005 | D123: 8443.74 | E123: 4971.55 | F123: 347.27 | G123: 0 | H123: 1.51 | J123: =of:=SUM([.D123:.F123]) -> 13762.56
A124: 128 | B124: VA BEACH CITY PBLC SCHS | C124: 2005 | D124: 43677.85 | E124: 28898.33 | F124: 371.78 | G124: 0 | H124: 5.16 | J124: =of:=SUM([.D124:.F124]) -> 72947.96
A125: 130 | B125: WAYNESBORO CITY PBLC SCHS | C125: 2005 | D125: 1894.61 | E125: 1044.88 | F125: 89.76 | G125: 0 | H125: 0.99 | J125: =of:=SUM([.D125:.F125]) -> 3029.25
A126: 131 | B126: WILLIAMSBURG-JAMES CITY PBLC SCHS | C126: 2005 | D126: 5980.47 | E126: 3757.75 | F126: 0 | G126: 0 | H126: 0.57 | J126: =of:=SUM([.D126:.F126]) -> 9738.22
A127: 132 | B127: WINCHESTER CITY PBLC SCHS | C127: 2005 | D127: 2258.13 | E127: 1434.98 | F127: 0 | G127: 0 | H127: 0 | J127: =of:=SUM([.D127:.F127]) -> 3693.11
A128: 135 | B128: FRANKLIN CITY PBLC SCHS | C128: 2005 | D128: 792 | E128: 511.14 | F128: 71.77 | G128: 0 | H128: 1 | J128: =of:=SUM([.D128:.F128]) -> 1374.91
A129: 136 | B129: CHESAPEAKE CITY PBLC SCHS | C129: 2005 | D129: 23247.44 | E129: 16541.66 | F129: 0 | G129: 0 | H129: 0 | J129: =of:=SUM([.D129:.F129]) -> 39789.1
A130: 137 | B130: LEXINGTON CITY PBLC SCHS | C130: 2005 | D130: 412.44 | E130: 58.37 | F130: 0 | G130: 0 | H130: 0 | J130: =of:=SUM([.D130:.F130]) -> 470.81
A131: 139 | B131: SALEM CITY PBLC SCHS | C131: 2005 | D131: 2307.39 | E131: 1582.29 | F131: 5.67 | G131: 0 | H131: 1 | J131: =of:=SUM([.D131:.F131]) -> 3895.35
A132: 142 | B132: POQUOSON CITY PBLC SCHS | C132: 2005 | D132: 1435.1 | E132: 1068.29 | F132: 31.76 | G132: 0 | H132: 0 | J132: =of:=SUM([.D132:.F132]) -> 2535.15
A133: 143 | B133: MANASSAS CITY PBLC SCHS | C133: 2005 | D133: 3975.6 | E133: 2321.26 | F133: 74.9 | G133: 0 | H133: 0 | J133: =of:=SUM([.D133:.F133]) -> 6371.76
A134: 144 | B134: MANASSAS PARK CITY PBLC SCHS | C134: 2005 | D134: 1529.35 | E134: 721.31 | F134: 15.56 | G134: 0 | H134: 0 | J134: =of:=SUM([.D134:.F134]) -> 2266.22
A135: 202 | B135: COLONIAL BEACH PBLC SCHS | C135: 2005 | D135: 325.21 | E135: 241.56 | F135: 0 | G135: 0 | H135: 0 | J135: =of:=SUM([.D135:.F135]) -> 566.77
A136: 207 | B136: WEST POINT PBLC SCHS | C136: 2005 | D136: 468.6 | E136: 330.2 | F136: 0 | G136: 0 | H136: 0 | J136: =of:=SUM([.D136:.F136]) -> 798.8
D137: =of:=SUM([.D5:.D136]) -> 723386.51 | E137: =of:=SUM([.E5:.E136]) -> 455501.21 | F137: =of:=SUM([.F5:.F136]) -> 18149.68 | G137: =of:=SUM([.G5:.G136]) -> 0 | H137: =of:=SUM([.H5:.H136]) -> 37.88 | I137: =of:=SUM([.I5:.I136]) -> 0 | J137: =of:=SUM([.J5:.J136]) -> 1197037.4
